Workbook

Sheet Data summary
A1: RUN # 2 | B1: Rate classes | C1: Weather station used for normalization | H1: Test Year
A2: 1 | B2: Residential class | C2: Toronto Pearson | H2: 2004
A3: 2 | B3: Streetlights
A4: 3 | B4: Sentinellights
A5: 4 | B5: General service <50kW
A6: 5 | B6: General service >50kW
A7: 6 | B7: USL
A10: Monthly kWh by class (with actual weather) | C10: Jan | D10: Feb | E10: Mar | F10: Apr | G10: May | H10: Jun | I10: Jul | J10: Aug | K10: Sep | L10: Oct | M10: Nov | N10: Dec | O10: TOTAL
A11: 1 | B11: Residential class | C11: 21251120.86 | D11: 16857795.44 | E11: 15546767.98 | F11: 12671024.08 | G11: 11018103.22 | H11: 10386892.3 | I11: 11983593.41 | J11: 11617145.55 | K11: 10659766.16 | L11: 11504510.31 | M11: 13431840.75 | N11: 18867670.85 | O11: =SUM(C11:N11) -> 165796230.9
A12: 2 | B12: Streetlights | C12: 141715.96 | D12: 132700.708 | E12: 141853.1908 | F12: 102957.9611 | G12: 106894.2163 | H12: 103446.0157 | I12: 76353.01162 | J12: 76353.01162 | K12: 74664.306 | L12: 118301.4448 | M12: 114485.2692 | N12: 118301.4448 | O12: 1308026.54
A13: 3 | B13: Sentinellights | C13: 14180.516 | D13: 13265.644 | E13: 14180.516 | F13: 10292.31 | G13: 10635.387 | H13: 10292.31 | I13: 7596.705 | J13: 7596.705 | K13: 7351.65 | L13: 11648.281 | M13: 11272.53 | N13: 11648.281 | O13: 129960.835
A14: 4 | B14: General service <50kW | C14: 2509740.48 | D14: 2306020.3 | E14: 2209198.05 | F14: 1964935.5 | G14: 1997330.03 | H14: 2023516.51 | I14: 2168451.76 | J14: 2177971.62 | K14: 2042857.13 | L14: 2135678.59 | M14: 2191752.59 | N14: 2515230.7 | O14: 26242683.26
A15: 5 | B15: General service >50kW | C15: 3663419.659 | D15: 3468762.43 | E15: 3495303.579 | F15: 3098622.545 | G15: 3259146.555 | H15: 3178433.263 | I15: 3208644.514 | J15: 3213528.511 | K15: 3269196.151 | L15: 3345024.767 | M15: 3451520.697 | N15: 3508050.557 | O15: 40159653.23
A16: 6 | B16: USL | C16: 65512.52 | D16: 63599.48 | E16: 68248.68 | F16: 64382.6 | G16: 64382.6 | H16: 64382.6 | I16: 64382.6 | J16: 64382.6 | K16: 64382.6 | L16: 64382.6 | M16: 64003.16 | N16: 64003.16 | O16: 776045.2
A19: Monthly kWh by class (with normalized weather) | C19: Jan | D19: Feb | E19: Mar | F19: Apr | G19: May | H19: Jun | I19: Jul | J19: Aug | K19: Sep | L19: Oct | M19: Nov | N19: Dec | O19: TOTAL
A20: 1 | B20: Residential class | C20: 19800921.82 | D20: 17325473.7 | E20: 16443463.33 | F20: 12743767.42 | G20: 11182681.86 | H20: 10864629.47 | I20: 12430005.77 | J20: 11988803.64 | K20: 10537995.81 | L20: 12099413.06 | M20: 14241430.02 | N20: 18625139.01 | O20: =SUM(C20:N20) -> 168283724.9
A21: 2 | B21: Streetlights | C21: 141715.96 | D21: 132700.708 | E21: 141853.1908 | F21: 102957.9611 | G21: 106894.2163 | H21: 103446.0157 | I21: 76353.01162 | J21: 76353.01162 | K21: 74664.306 | L21: 118301.4448 | M21: 114485.2692 | N21: 118301.4448 | O21: 1308026.54
A22: 3 | B22: Sentinellights | C22: 14180.516 | D22: 13265.644 | E22: 14180.516 | F22: 10292.31 | G22: 10635.387 | H22: 10292.31 | I22: 7596.705 | J22: 7596.705 | K22: 7351.65 | L22: 11648.281 | M22: 11272.53 | N22: 11648.281 | O22: 129960.835
A23: 4 | B23: General service <50kW | C23: 2428564.742 | D23: 2332198.864 | E23: 2259391.097 | F23: 1969007.356 | G23: 2011379.796 | H23: 2103860.592 | I23: 2243527.75 | J23: 2240475.714 | K23: 2027037.322 | L23: 2168978.621 | M23: 2237069.825 | N23: 2501654.841 | O23: 26523146.52
A24: 5 | B24: General service >50kW | C24: 3583293.417 | D24: 3494602.539 | E24: 3544847.694 | F24: 3102641.753 | G24: 3273339.88 | H24: 3261342.092 | I24: 3286117.082 | J24: 3278027.861 | K24: 3252975.594 | L24: 3377894.27 | M24: 3496252.036 | N24: 3494650.214 | O24: 40445984.43
A25: 6 | B25: USL | C25: 65512.52 | D25: 63599.48 | E25: 68248.68 | F25: 64382.6 | G25: 64382.6 | H25: 64382.6 | I25: 64382.6 | J25: 64382.6 | K25: 64382.6 | L25: 64382.6 | M25: 64003.16 | N25: 64003.16 | O25: 776045.2
A28: Residential class information | C28: Equipment saturation
B29: Electric space heating | C29: 0.2449534161
B30: Electric water heating | C30: 0.4496221662
B31: Air conditioning | C31: 0.3218597821
B32: Baseload | C32: 1
A35: General service >50kW | C35: 2004 kWh (Actual) | D35: 2004 kWh (Weather Corrected)
B36: Weather sensitive load | C36: 27275911.55 | D36: 27562242.75
B37: Non-weather sensitive load | C37: 12883741.68 | D37: 12883741.68
B38: TOTAL | C38: =SUM(C36:C37) -> 40159653.23 | D38: =SUM(D36:D37) -> 40445984.43

Sheet Hourly load shapes by class
A1: ALL UNITS IN GWh | E1: 2004 Load Shape | M1: 2021 Load Shape
A2: Year | B2: Month | C2: Day | D2: Hour (EST) | E2: Residential | F2: GS>50kW | G2: Street Lighting | H2: Sentinel Lighting | I2: GS<50kW | J2: USL | K2: TOTAL LDC sales | M2: =E2 -> Residential | N2: GS>50kW | O2: Street Lighting | P2: Sentinel Lighting | Q2: GS<50kW | R2: USL | S2: ED | T2: =K2 -> TOTAL LDC sales | W2: =E2 -> Residential | X2: GS>50kW | Y2: Street Lighting | Z2: Sentinel Lighting | AA2: GS<50kW | AB2: USL | AC2: ED 2010
A3: 2004 | B3: 1 | C3: 1 | D3: 1 | E3: 0.0197436758 | F3: 0.003493005179 | G3: 0.00032653447 | H3: 3.2674e-05 | I3: 0.00301212106 | J3: 8.805446237e-05 | K3: =SUM(E3:J3) -> 0.02669606497 | M3: =E3*W$5 -> 0.02265110289 | N3: =(F3*X$5)-S3 -> 0.00487448308 | O3: =G3*Y$5 -> 0.0002171738482 | P3: =H3*Z$5 -> 2.394823389e-05 | Q3: =I3*AA$5 -> 0.005268492442 | R3: =J3*AB$5 -> 5.004753473e-05 | S3: =(F3*$AC$7)*$AC$5 -> 5.309233662e-05 | T3: =SUM(M3:R3) -> 0.03308524803 | V3: 2004 | W3: ='Data summary'!O11 -> 165796230.9 | X3: ='Data summary'!O15 -> 40159653.23 | Y3: ='Data summary'!O12 -> 1308026.54 | Z3: ='Data summary'!O13 -> 129960.835 | AA3: ='Data summary'!O14 -> 26242683.26 | AB3: ='Data summary'!O16 -> 776045.2 | AC3: 1000000 | AD3: =SUM(W3:AB3) -> 234412600
A4: 2004 | B4: 1 | C4: 1 | D4: 2 | E4: 0.01801256486 | F4: 0.003520177536 | G4: 0.00032653447 | H4: 3.2674e-05 | I4: 0.003035385093 | J4: 8.805446237e-05 | K4: 0.02501539042 | M4: 0.02066507089 | N4: =(F4*X$5)-S4 -> 0.004912402061 | O4: 0.0002171738482 | P4: 2.394823389e-05 | Q4: 0.005309183497 | R4: =J4*AB$5 -> 5.004753473e-05 | S4: =(F4*$AC$7)*$AC$5 -> 5.350534601e-05 | T4: 0.03117782607 | V4: 2024 Forecast | W4: ='[1]3.2 LoadForecast'!$K$30 -> 190211160.5 | X4: ='[1]3.2 LoadForecast'!$K$32 -> 56653142.46 | Y4: ='[1]3.2 LoadForecast'!$K$34 -> 869951.516 | Z4: ='[1]3.2 LoadForecast'!$K$33 -> 95254.1003 | AA4: ='[1]3.2 LoadForecast'!$K$31 -> 45901003.2 | AB4: ='[1]3.2 LoadForecast'!$K$35 -> 441080.9862 | AC4: ='[1]3.2 LoadForecast'!$K$36 -> 935588.9 | AD4: =SUM(W4:AC4) -> 295107181.7
A5: 2004 | B5: 1 | C5: 1 | D5: 3 | E5: 0.01706681029 | F5: 0.003455602945 | G5: 0.00032653447 | H5: 3.2674e-05 | I5: 0.002990412113 | J5: 8.805446237e-05 | K5: 0.02396008828 | M5: 0.01958004577 | N5: 0.004822288323 | O5: 0.0002171738482 | P5: 2.394823389e-05 | Q5: 0.005230521384 | R5: 5.004753473e-05 | S5: 5.252383704e-05 | T5: 0.0299240251 | V5: Scaling Factor | W5: =W4/W3 -> 1.147258653 | X5: =X4/X3 -> 1.410697999 | Y5: =Y4/Y3 -> 0.6650870525 | Z5: 0.7329446622 | AA5: 1.749097177 | AB5: 0.5683702266 | AC5: =AC4/AC3 -> 0.9355889
A6: 2004 | B6: 1 | C6: 1 | D6: 4 | E6: 0.01644968618 | F6: 0.003536513876 | G6: 0.00032653447 | H6: 3.2674e-05 | I6: 0.003164333161 | J6: 8.805446237e-05 | K6: 0.02359779615 | M6: 0.0188720448 | N6: 0.004935199397 | O6: 0.0002171738482 | P6: 2.394823389e-05 | Q6: 0.005534726198 | R6: 5.004753473e-05 | S6: 5.375365211e-05 | T6: 0.02963314001
A7: 2004 | B7: 1 | C7: 1 | D7: 5 | E7: 0.01665222118 | F7: 0.003518589724 | G7: 0.00032653447 | H7: 3.2674e-05 | I7: 0.003131555412 | J7: 8.805446237e-05 | K7: 0.02374962925 | M7: 0.01910440484 | N7: 0.004910186272 | O7: 0.0002171738482 | P7: 2.394823389e-05 | Q7: 0.005477394729 | R7: 5.004753473e-05 | S7: 5.348121188e-05 | T7: 0.02978315545 | AC7: =AC4/(X4+AC4) -> 0.01624604116
A8: 2004 | B8: 1 | C8: 1 | D8: 6 | E8: 0.01727655041 | F8: 0.003515296175 | G8: 0.00032653447 | H8: 3.2674e-05 | I8: 0.003140395989 | J8: 8.805446237e-05 | K8: 0.02437950551 | M8: 0.01982067195 | N8: 0.004905590129 | O8: 0.0002171738482 | P8: 2.394823389e-05 | Q8: 0.005492857759 | R8: 5.004753473e-05 | S8: 5.34311512e-05 | T8: 0.03051028945
A9: 2004 | B9: 1 | C9: 1 | D9: 7 | E9: 0.01843238134 | F9: 0.003606443325 | G9: 0.00032653447 | H9: 3.2674e-05 | I9: 0.00316369253 | J9: 8.805446237e-05 | K9: 0.02564978013 | M9: 0.02114670898 | N9: 0.00503278583 | O9: 0.0002171738482 | P9: 2.394823389e-05 | Q9: 0.005533605672 | R9: 5.004753473e-05 | S9: 5.481655286e-05 | T9: 0.0320042701
A10: 2004 | B10: 1 | C10: 1 | D10: 8 | E10: 0.02083494755 | F10: 0.003855792324 | G10: 0 | H10: 0 | I10: 0.003367187687 | J10: 8.805446237e-05 | K10: 0.02814598203 | M10: 0.02390307386 | N10: 0.005380751956 | O10: 0 | P10: 0 | Q10: 0.005889538477 | R10: 5.004753473e-05 | S10: 5.860656185e-05 | T10: 0.03522341182
A11: 2004 | B11: 1 | C11: 1 | D11: 9 | E11: 0.02340722144 | F11: 0.003805853651 | G11: 0 | H11: 0 | I11: 0.003165169125 | J11: 8.805446237e-05 | K11: 0.03046629868 | M11: 0.02685413733 | N11: 0.005311062618 | O11: 0 | P11: 0 | Q11: 0.005536188381 | R11: 5.004753473e-05 | S11: 5.78475132e-05 | T11: 0.03775143586
A12: 2004 | B12: 1 | C12: 1 | D12: 10 | E12: 0.02473401457 | F12: 0.003787747746 | G12: 0 | H12: 0 | I12: 0.002983949597 | J12: 8.805446237e-05 | K12: 0.03159376638 | M12: 0.02837631223 | N12: 0.005285795856 | O12: 0 | P12: 0 | Q12: 0.005219217816 | R12: 5.004753473e-05 | S12: 5.757231039e-05 | T12: 0.03893137344
A13: 2004 | B13: 1 | C13: 1 | D13: 11 | E13: 0.02579465517 | F13: 0.004118148186 | G13: 0 | H13: 0 | I13: 0.003344983523 | J13: 8.805446237e-05 | K13: 0.03334584134 | M13: 0.02959314134 | N13: 0.005746869137 | O13: 0 | P13: 0 | Q13: 0.005850701236 | R13: 5.004753473e-05 | S13: 6.259427014e-05 | T13: 0.04124075925
A14: 2004 | B14: 1 | C14: 1 | D14: 12 | E14: 0.02644275766 | F14: 0.00418312043 | G14: 0 | H14: 0 | I14: 0.003346721827 | J14: 8.805446237e-05 | K14: 0.03406065438 | M14: 0.03033668253 | N14: 0.005837537798 | O14: 0 | P14: 0 | Q14: 0.0058537417 | R14: 5.004753473e-05 | S14: 6.358182328e-05 | T14: 0.04207800956
A15: 2004 | B15: 1 | C15: 1 | D15: 13 | E15: 0.02629430558 | F15: 0.004122925115 | G15: 0 | H15: 0 | I15: 0.003173532782 | J15: 8.805446237e-05 | K15: 0.03367881794 | M15: 0.0301663696 | N15: 0.005753535333 | O15: 0 | P15: 0 | Q15: 0.005550817229 | R15: 5.004753473e-05 | S15: 6.266687762e-05 | T15: 0.04152076969
A16: 2004 | B16: 1 | C16: 1 | D16: 14 | E16: 0.02541293201 | F16: 0.004061373168 | G16: 0 | H16: 0 | I16: 0.003094221864 | J16: 8.805446237e-05 | K16: 0.03265658151 | M16: 0.02915520614 | N16: 0.005667639691 | O16: 0 | P16: 0 | Q16: 0.005412094727 | R16: 5.004753473e-05 | S16: 6.173131169e-05 | T16: 0.04028498809
A17: 2004 | B17: 1 | C17: 1 | D17: 15 | E17: 0.02467498844 | F17: 0.004108739206 | G17: 0 | H17: 0 | I17: 0.003290224082 | J17: 8.805446237e-05 | K17: 0.03216200619 | M17: 0.028308594 | N17: 0.00573373892 | O17: 0 | P17: 0 | Q17: 0.005754921653 | R17: 5.004753473e-05 | S17: 6.245125726e-05 | T17: 0.0398473021
A18: 2004 | B18: 1 | C18: 1 | D18: 16 | E18: 0.02557658144 | F18: 0.004078472108 | G18: 0 | H18: 0 | I18: 0.003302828296 | J18: 8.805446237e-05 | K18: 0.0330459363 | M18: 0.02934295436 | N18: 0.005691501235 | O18: 0 | P18: 0 | Q18: 0.005776967649 | R18: 5.004753473e-05 | S18: 6.199120901e-05 | T18: 0.04086147077
A19: 2004 | B19: 1 | C19: 1 | D19: 17 | E19: 0.02789287272 | F19: 0.004021566976 | G19: 0 | H19: 0 | I19: 0.003032288627 | J19: 8.805446237e-05 | K19: 0.03503478279 | M19: 0.03200033957 | N19: 0.005612090214 | O19: 0 | P19: 0 | Q19: 0.005303767477 | R19: 5.004753473e-05 | S19: 6.112627286e-05 | T19: 0.0429662448
A20: 2004 | B20: 1 | C20: 1 | D20: 18 | E20: 0.03188462242 | F20: 0.004280808317 | G20: 0.00032653447 | H20: 3.2674e-05 | I20: 0.003225829431 | J20: 8.805446237e-05 | K20: 0.0398385231 | M20: 0.03657990896 | N20: 0.005973861086 | O20: 0.0002171738482 | P20: 2.394823389e-05 | Q20: 0.005642289151 | R20: 5.004753473e-05 | S20: 6.506664163e-05 | T20: 0.04848722881
A21: 2004 | B21: 1 | C21: 1 | D21: 19 | E21: 0.03258436906 | F21: 0.004091762381 | G21: 0.00032653447 | H21: 3.2674e-05 | I21: 0.003034576448 | J21: 8.805446237e-05 | K21: 0.04015797082 | M21: 0.03738269934 | N21: 0.005710047788 | O21: 0.0002171738482 | P21: 2.394823389e-05 | Q21: 0.005307769097 | R21: 5.004753473e-05 | S21: 6.219321604e-05 | T21: 0.04869168585
A22: 2004 | B22: 1 | C22: 1 | D22: 20 | E22: 0.03135208417 | F22: 0.003964326505 | G22: 0.00032653447 | H22: 3.2674e-05 | I22: 0.003036831551 | J22: 8.805446237e-05 | K22: 0.03880050516 | M22: 0.03596894984 | N22: 0.005532211229 | O22: 0.0002171738482 | P22: 2.394823389e-05 | Q22: 0.005311713493 | R22: 5.004753473e-05 | S22: 6.025623969e-05 | T22: 0.04710404418
A23: 2004 | B23: 1 | C23: 1 | D23: 21 | E23: 0.03017320134 | F23: 0.003866907653 | G23: 0.00032653447 | H23: 3.2674e-05 | I23: 0.002979723221 | J23: 8.805446237e-05 | K23: 0.03746709514 | M23: 0.03461646631 | N23: 0.005396263379 | O23: 0.0002171738482 | P23: 2.394823389e-05 | Q23: 0.005211825474 | R23: 5.004753473e-05 | S23: 5.877551057e-05 | T23: 0.04551572478
A24: 2004 | B24: 1 | C24: 1 | D24: 22 | E24: 0.02845182066 | F24: 0.003900357844 | G24: 0.00032653447 | H24: 3.2674e-05 | I24: 0.00312302538 | J24: 8.805446237e-05 | K24: 0.03592246681 | M24: 0.03264159743 | N24: 0.005442943066 | O24: 0.0002171738482 | P24: 2.394823389e-05 | Q24: 0.005462474874 | R24: 5.004753473e-05 | S24: 5.928394062e-05 | T24: 0.04383818499
A25: 2004 | B25: 1 | C25: 1 | D25: 23 | E25: 0.0256022535 | F25: 0.003791640831 | G25: 0.00032653447 | H25: 3.2674e-05 | I25: 0.003011606085 | J25: 8.805446237e-05 | K25: 0.03285276335 | M25: 0.02937240685 | N25: 0.00529122865 | O25: 0.0002171738482 | P25: 2.394823389e-05 | Q25: 0.005267591701 | R25: 5.004753473e-05 | S25: 5.76314838e-05 | T25: 0.04022239682
A26: 2004 | B26: 1 | C26: 1 | D26: 24 | E26: 0.02170585637 | F26: 0.003871399417 | G26: 0.00032653447 | H26: 3.2674e-05 | I26: 0.003339875977 | J26: 8.805446237e-05 | K26: 0.02936439469 | M26: 0.02490223153 | N26: 0.005402531628 | O26: 0.0002171738482 | P26: 2.394823389e-05 | Q26: 0.005841767643 | R26: 5.004753473e-05 | S26: 5.884378365e-05 | T26: 0.03643770042
A27: 2004 | B27: 1 | C27: 2 | D27: 1 | E27: 0.01841335106 | F27: 0.003949737271 | G27: 0.00032653447 | H27: 3.2674e-05 | I27: 0.002895293782 | J27: 8.805446237e-05 | K27: 0.02570564504 | M27: 0.02112487633 | N27: 0.005511851977 | O27: 0.0002171738482 | P27: 2.394823389e-05 | Q27: 0.00506415018 | R27: 5.004753473e-05 | S27: 6.003448894e-05 | T27: 0.0319920481
A28: 2004 | B28: 1 | C28: 2 | D28: 2 | E28: 0.01679180312 | F28: 0.003925314934 | G28: 0.00032653447 | H28: 3.2674e-05 | I28: 0.002922944596 | J28: 8.805446237e-05 | K28: 0.02408732558 | M28: 0.01926454142 | N28: 0.005477770646 | O28: 0.0002171738482 | P28: 2.394823389e-05 | Q28: 0.005112514141 | R28: 5.004753473e-05 | S28: 5.966327881e-05 | T28: 0.03014599582
A29: 2004 | B29: 1 | C29: 2 | D29: 3 | E29: 0.01590371846 | F29: 0.003845546386 | G29: 0.00032653447 | H29: 3.2674e-05 | I29: 0.002874646659 | J29: 8.805446237e-05 | K29: 0.02307117443 | M29: 0.01824567861 | N29: 0.005366453766 | O29: 0.0002171738482 | P29: 2.394823389e-05 | Q29: 0.005028036355 | R29: 5.004753473e-05 | S29: 5.845082753e-05 | T29: 0.02893133834
A30: 2004 | B30: 1 | C30: 2 | D30: 4 | E30: 0.01537217536 | F30: 0.003907072926 | G30: 0.00032653447 | H30: 3.2674e-05 | I30: 0.002995810719 | J30: 8.805446237e-05 | K30: 0.02272232194 | M30: 0.01763586119 | N30: 0.005452313953 | O30: 0.0002171738482 | P30: 2.394823389e-05 | Q30: 0.00523996407 | R30: 5.004753473e-05 | S30: 5.93860073e-05 | T30: 0.02861930883
A31: 2004 | B31: 1 | C31: 2 | D31: 5 | E31: 0.01546593429 | F31: 0.003921326826 | G31: 0.00032653447 | H31: 3.2674e-05 | I31: 0.003033998472 | J31: 8.805446237e-05 | K31: 0.02286852252 | M31: 0.01774342694 | N31: 0.005472205247 | O31: 0.0002171738482 | P31: 2.394823389e-05 | Q31: 0.005306758161 | R31: 5.004753473e-05 | S31: 5.96026611e-05 | T31: 0.02881355996
A32: 2004 | B32: 1 | C32: 2 | D32: 6 | E32: 0.01611467391 | F32: 0.003963499829 | G32: 0.00032653447 | H32: 3.2674e-05 | I32: 0.002949592623 | J32: 8.805446237e-05 | K32: 0.0234750293 | M32: 0.01848769908 | N32: 0.005531057605 | O32: 0.0002171738482 | P32: 2.394823389e-05 | Q32: 0.005159124129 | R32: 5.004753473e-05 | S32: 6.024367454e-05 | T32: 0.02946905043
A33: 2004 | B33: 1 | C33: 2 | D33: 7 | E33: 0.01717898647 | F33: 0.0042131765 | G33: 0.00032653447 | H33: 3.2674e-05 | I33: 0.002858750275 | J33: 8.805446237e-05 | K33: 0.02469817618 | M33: 0.01970874088 | N33: 0.005879480995 | O33: 0.0002171738482 | P33: 2.394823389e-05 | Q33: 0.005000232036 | R33: 5.004753473e-05 | S33: 6.4038664e-05 | T33: 0.03087962352
A34: 2004 | B34: 1 | C34: 2 | D34: 8 | E34: 0.0192425402 | F34: 0.00476714023 | G34: 0 | H34: 0 | I34: 0.003004035036 | J34: 8.805446237e-05 | K34: 0.02710176992 | M34: 0.02207617074 | N34: 0.006652536485 | O34: 0 | P34: 0 | Q34: 0.0052543492 | R34: 5.004753473e-05 | S34: 7.245869986e-05 | T34: 0.03403310396
A35: 2004 | B35: 1 | C35: 2 | D35: 9 | E35: 0.02117472669 | F35: 0.005127052588 | G35: 0 | H35: 0 | I35: 0.002946170352 | J35: 8.805446237e-05 | K35: 0.02933600409 | M35: 0.02429288841 | N35: 0.007154793599 | O35: 0 | P35: 0 | Q35: 0.005153138244 | R35: 5.004753473e-05 | S35: 7.792922941e-05 | T35: 0.03665086779
A36: 2004 | B36: 1 | C36: 2 | D36: 10 | E36: 0.02234525857 | F36: 0.00518824345 | G36: 0 | H36: 0 | I36: 0.00280008507 | J36: 8.805446237e-05 | K36: 0.03042164155 | M36: 0.02563579124 | N36: 0.007240185348 | O36: 0 | P36: 0 | Q36: 0.00489762089 | R36: 5.004753473e-05 | S36: 7.8859307e-05 | T36: 0.03782364501
A37: 2004 | B37: 1 | C37: 2 | D37: 11 | E37: 0.02344756802 | F37: 0.005476518637 | G37: 0 | H37: 0 | I37: 0.003096573789 | J37: 8.805446237e-05 | K37: 0.03210871491 | M37: 0.0269004253 | N37: 0.007642472905 | O37: 0 | P37: 0 | Q37: 0.005416208471 | R37: 5.004753473e-05 | S37: 8.324097908e-05 | T37: 0.04000915421
A38: 2004 | B38: 1 | C38: 2 | D38: 12 | E38: 0.02390689464 | F38: 0.005535305048 | G38: 0 | H38: 0 | I38: 0.003266754552 | J38: 8.805446237e-05 | K38: 0.0327970087 | M38: 0.02742739173 | N38: 0.007724509247 | O38: 0 | P38: 0 | Q38: 0.005713871164 | R38: 5.004753473e-05 | S38: 8.413450995e-05 | T38: 0.04091581968
A39: 2004 | B39: 1 | C39: 2 | D39: 13 | E39: 0.02349537047 | F39: 0.00551147748 | G39: 0 | H39: 0 | I39: 0.003334436532 | J39: 8.805446237e-05 | K39: 0.03242933894 | M39: 0.02695526707 | N39: 0.007691257914 | O39: 0 | P39: 0 | Q39: 0.005832253524 | R39: 5.004753473e-05 | S39: 8.377234006e-05 | T39: 0.04052882604
A40: 2004 | B40: 1 | C40: 2 | D40: 14 | E40: 0.02330818826 | F40: 0.005264933085 | G40: 0 | H40: 0 | I40: 0.002783853493 | J40: 8.805446237e-05 | K40: 0.0314450293 | M40: 0.02674052066 | N40: 0.007347205609 | O40: 0 | P40: 0 | Q40: 0.004869230286 | R40: 5.004753473e-05 | S40: 8.002495998e-05 | T40: 0.03900700409
A41: 2004 | B41: 1 | C41: 2 | D41: 15 | E41: 0.02261847899 | F41: 0.005278170198 | G41: 0 | H41: 0 | I41: 0.002984098711 | J41: 8.805446237e-05 | K41: 0.03096880236 | M41: 0.02594924573 | N41: 0.007365677979 | O41: 0 | P41: 0 | Q41: 0.005219478631 | R41: 5.004753473e-05 | S41: 8.022615901e-05 | T41: 0.03858444988
A42: 2004 | B42: 1 | C42: 2 | D42: 16 | E42: 0.02332805741 | F42: 0.005198418587 | G42: 0 | H42: 0 | I42: 0.0032054052 | J42: 8.805446237e-05 | K42: 0.03181993566 | M42: 0.02676331571 | N42: 0.007254384735 | O42: 0 | P42: 0 | Q42: 0.005606565186 | R42: 5.004753473e-05 | S42: 7.901396518e-05 | T42: 0.03967431317
A43: 2004 | B43: 1 | C43: 2 | D43: 17 | E43: 0.02564908802 | F43: 0.004982641848 | G43: 0 | H43: 0 | I43: 0.003015212291 | J43: 8.805446237e-05 | K43: 0.03373499662 | M43: 0.02942613816 | N43: 0.006953268645 | O43: 0 | P43: 0 | Q43: 0.005273899306 | R43: 5.004753473e-05 | S43: 7.573424165e-05 | T43: 0.04170335365
A44: 2004 | B44: 1 | C44: 2 | D44: 18 | E44: 0.03016355005 | F44: 0.00493797778 | G44: 0.00032653447 | H44: 3.2674e-05 | I44: 0.002811731435 | J44: 8.805446237e-05 | K44: 0.03836052219 | M44: 0.03460539378 | N44: 0.00689094001 | O44: 0.0002171738482 | P44: 2.394823389e-05 | Q44: 0.004917991514 | R44: 5.004753473e-05 | S44: 7.505536498e-05 | T44: 0.04670549493
A45: 2004 | B45: 1 | C45: 2 | D45: 19 | E45: 0.03077902343 | F45: 0.004790545976 | G45: 0.00032653447 | H45: 3.2674e-05 | I45: 0.002651284264 | J45: 8.805446237e-05 | K45: 0.03866811661 | M45: 0.03531150095 | N45: 0.006685199166 | O45: 0.0002171738482 | P45: 2.394823389e-05 | Q45: 0.004637353821 | R45: 5.004753473e-05 | S45: 7.28144582e-05 | T45: 0.04692522356
A46: 2004 | B46: 1 | C46: 2 | D46: 20 | E46: 0.02926200939 | F46: 0.004818731205 | G46: 0.00032653447 | H46: 3.2674e-05 | I46: 0.002833011811 | J46: 8.805446237e-05 | K46: 0.03736101534 | M46: 0.03357109347 | N46: 0.006724531607 | O46: 0.0002171738482 | P46: 2.394823389e-05 | Q46: 0.004955212961 | R46: 5.004753473e-05 | S46: 7.324286284e-05 | T46: 0.04554200766
A47: 2004 | B47: 1 | C47: 2 | D47: 21 | E47: 0.02815481371 | F47: 0.004706377382 | G47: 0.00032653447 | H47: 3.2674e-05 | I47: 0.002768617412 | J47: 8.805446237e-05 | K47: 0.03607707144 | M47: 0.03230085364 | N47: 0.006567742029 | O47: 0.0002171738482 | P47: 2.394823389e-05 | Q47: 0.0048425809 | R47: 5.004753473e-05 | S47: 7.153512792e-05 | T47: 0.04400234619
A48: 2004 | B48: 1 | C48: 2 | D48: 22 | E48: 0.02684001927 | F48: 0.004508628178 | G48: 0.00032653447 | H48: 3.2674e-05 | I48: 0.002793841467 | J48: 8.805446237e-05 | K48: 0.03458975184 | M48: 0.03079244434 | N48: 0.006291783334 | O48: 0.0002171738482 | P48: 2.394823389e-05 | Q48: 0.004886700222 | R48: 5.004753473e-05 | S48: 6.852941598e-05 | T48: 0.04226209751
A49: 2004 | B49: 1 | C49: 2 | D49: 23 | E49: 0.02445071427 | F49: 0.004109814821 | G49: 0.00032653447 | H49: 3.2674e-05 | I49: 0.00262613953 | J49: 8.805446237e-05 | K49: 0.03163393155 | M49: 0.02805129351 | N49: 0.005735239939 | O49: 0.0002171738482 | P49: 2.394823389e-05 | Q49: 0.004593373237 | R49: 5.004753473e-05 | S49: 6.246760619e-05 | T49: 0.0386710763
A50: 2004 | B50: 1 | C50: 2 | D50: 24 | E50: 0.02106421509 | F50: 0.003872555574 | G50: 0.00032653447 | H50: 3.2674e-05 | I50: 0.002890946584 | J50: 8.805446237e-05 | K50: 0.02827498018 | M50: 0.02416610302 | N50: 0.005404145043 | O50: 0.0002171738482 | P50: 2.394823389e-05 | Q50: 0.005056546509 | R50: 5.004753473e-05 | S50: 5.88613568e-05 | T50: 0.03491796419
A51: 2004 | B51: 1 | C51: 3 | D51: 1 | E51: 0.01926806026 | F51: 0.003693133818 | G51: 0.00032653447 | H51: 3.2674e-05 | I51: 0.002881303983 | J51: 8.805446237e-05 | K51: 0.02628976099 | M51: 0.02210544885 | N51: 0.005153762273 | O51: 0.0002171738482 | P51: 2.394823389e-05 | Q51: 0.005039680663 | R51: 5.004753473e-05 | S51: 5.613421505e-05 | T51: 0.0325900614
A52: 2004 | B52: 1 | C52: 3 | D52: 2 | E52: 0.01769439511 | F52: 0.003660900943 | G52: 0.00032653447 | H52: 3.2674e-05 | I52: 0.002964923621 | J52: 8.805446237e-05 | K52: 0.0247674826 | M52: 0.02030004789 | N52: 0.005108781348 | O52: 0.0002171738482 | P52: 2.394823389e-05 | Q52: 0.005185939536 | R52: 5.004753473e-05 | S52: 5.564428773e-05 | T52: 0.03088593839
A53: 2004 | B53: 1 | C53: 3 | D53: 3 | E53: 0.0169853561 | F53: 0.003612694701 | G53: 0.00032653447 | H53: 3.2674e-05 | I53: 0.002941213427 | J53: 8.805446237e-05 | K53: 0.02398652716 | M53: 0.01948659675 | N53: 0.005041509615 | O53: 0.0002171738482 | P53: 2.394823389e-05 | Q53: 0.005144468102 | R53: 5.004753473e-05 | S53: 5.491157138e-05 | T53: 0.02996374408
A54: 2004 | B54: 1 | C54: 3 | D54: 4 | E54: 0.01671006268 | F54: 0.003631887387 | G54: 0.00032653447 | H54: 3.2674e-05 | I54: 0.00303216805 | J54: 8.805446237e-05 | K54: 0.02382138105 | M54: 0.01917076399 | N54: 0.005068292978 | O54: 0.0002171738482 | P54: 2.394823389e-05 | Q54: 0.005303556576 | R54: 5.004753473e-05 | S54: 5.520329283e-05 | T54: 0.02983378316
A55: 2004 | B55: 1 | C55: 3 | D55: 5 | E55: 0.01640164176 | F55: 0.00367812979 | G55: 0.00032653447 | H55: 3.2674e-05 | I55: 0.003107182266 | J55: 8.805446237e-05 | K55: 0.02363421675 | M55: 0.01881692542 | N55: 0.005132824177 | O55: 0.0002171738482 | P55: 2.394823389e-05 | Q55: 0.005434763729 | R55: 5.004753473e-05 | S55: 5.590615959e-05 | T55: 0.02967568295
A56: 2004 | B56: 1 | C56: 3 | D56: 6 | E56: 0.01725971523 | F56: 0.003685529841 | G56: 0.00032653447 | H56: 3.2674e-05 | I56: 0.00304468238 | J56: 8.805446237e-05 | K56: 0.02443719038 | M56: 0.01980135764 | N56: 0.005143150935 | O56: 0.0002171738482 | P56: 2.394823389e-05 | Q56: 0.005325445354 | R56: 5.004753473e-05 | S56: 5.601863751e-05 | T56: 0.03056112355
A57: 2004 | B57: 1 | C57: 3 | D57: 7 | E57: 0.01840381311 | F57: 0.00382145038 | G57: 0.00032653447 | H57: 3.2674e-05 | I57: 0.003045463713 | J57: 8.805446237e-05 | K57: 0.02571799014 | M57: 0.02111393383 | N57: 0.005332827828 | O57: 0.0002171738482 | P57: 2.394823389e-05 | Q57: 0.005326811982 | R57: 5.004753473e-05 | S57: 5.808457748e-05 | T57: 0.03206474326
A58: 2004 | B58: 1 | C58: 3 | D58: 8 | E58: 0.02051915436 | F58: 0.004124824528 | G58: 0 | H58: 0 | I58: 0.003217995093 | J58: 8.805446237e-05 | K58: 0.02795002844 | M58: 0.02354077738 | N58: 0.005756185961 | O58: 0 | P58: 0 | Q58: 0.005628586132 | R58: 5.004753473e-05 | S58: 6.269574797e-05 | T58: 0.03497559701
A59: 2004 | B59: 1 | C59: 3 | D59: 9 | E59: 0.02266131243 | F59: 0.004094061881 | G59: 0 | H59: 0 | I59: 0.003003943046 | J59: 8.805446237e-05 | K59: 0.02984737182 | M59: 0.02599838677 | N59: 0.005713256737 | O59: 0 | P59: 0 | Q59: 0.005254188301 | R59: 5.004753473e-05 | S59: 6.222816756e-05 | T59: 0.03701587934
A60: 2004 | B60: 1 | C60: 3 | D60: 10 | E60: 0.02454438379 | F60: 0.00429381472 | G60: 0 | H60: 0 | I60: 0.003105450031 | J60: 8.805446237e-05 | K60: 0.032031703 | M60: 0.02815875667 | N60: 0.005992011502 | O60: 0 | P60: 0 | Q60: 0.005431733882 | R60: 5.004753473e-05 | S60: 6.526433397e-05 | T60: 0.03963254959
A61: 2004 | B61: 1 | C61: 3 | D61: 11 | E61: 0.02510802462 | F61: 0.004425716045 | G61: 0 | H61: 0 | I61: 0.003237103269 | J61: 8.805446237e-05 | K61: 0.0328588984 | M61: 0.0288053985 | N61: 0.006176079586 | O61: 0 | P61: 0 | Q61: 0.005662008189 | R61: 5.004753473e-05 | S61: 6.726918342e-05 | T61: 0.04069353381
A62: 2004 | B62: 1 | C62: 3 | D62: 12 | E62: 0.02515402602 | F62: 0.004442366829 | G62: 0 | H62: 0 | I62: 0.003273536555 | J62: 8.805446237e-05 | K62: 0.03295798387 | M62: 0.028858174 | N62: 0.006199315729 | O62: 0 | P62: 0 | Q62: 0.005725733546 | R62: 5.004753473e-05 | S62: 6.752226894e-05 | T62: 0.04083327081
A63: 2004 | B63: 1 | C63: 3 | D63: 13 | E63: 0.0253200924 | F63: 0.004294446667 | G63: 0 | H63: 0 | I63: 0.003041804908 | J63: 8.805446237e-05 | K63: 0.03274439844 | M63: 0.0290486951 | N63: 0.005992893382 | O63: 0 | P63: 0 | Q63: 0.005320412378 | R63: 5.004753473e-05 | S63: 6.527393931e-05 | T63: 0.04041204839
A64: 2004 | B64: 1 | C64: 3 | D64: 14 | E64: 0.02434948795 | F64: 0.00418620416 | G64: 0 | H64: 0 | I64: 0.002943343793 | J64: 8.805446237e-05 | K64: 0.03156709037 | M64: 0.02793516074 | N64: 0.005841841138 | O64: 0 | P64: 0 | Q64: 0.005148194319 | R64: 5.004753473e-05 | S64: 6.362869479e-05 | T64: 0.03897524373
A65: 2004 | B65: 1 | C65: 3 | D65: 15 | E65: 0.02388329325 | F65: 0.004007338308 | G65: 0 | H65: 0 | I65: 0.002701019824 | J65: 8.805446237e-05 | K65: 0.03067970585 | M65: 0.02740031484 | N65: 0.005592234131 | O65: 0 | P65: 0 | Q65: 0.004724346149 | R65: 5.004753473e-05 | S65: 6.091000257e-05 | T65: 0.03776694265
A66: 2004 | B66: 1 | C66: 3 | D66: 16 | E66: 0.02396697916 | F66: 0.004028096762 | G66: 0 | H66: 0 | I66: 0.002854201238 | J66: 8.805446237e-05 | K66: 0.03093733162 | M66: 0.02749632422 | N66: 0.005621202521 | O66: 0 | P66: 0 | Q66: 0.004992275328 | R66: 5.004753473e-05 | S66: 6.12255231e-05 | T66: 0.0381598496
A67: 2004 | B67: 1 | C67: 3 | D67: 17 | E67: 0.02622154041 | F67: 0.004145612065 | G67: 0 | H67: 0 | I67: 0.003049595474 | J67: 8.805446237e-05 | K67: =SUM(E67:J67) -> 0.03350480241 | M67: =E67*W$5 -> 0.03008288912 | N67: 0.005785194935 | O67: =G67*Y$5 -> 0 | P67: =H67*Z$5 -> 0 | Q67: =I67*AA$5 -> 0.005334038834 | R67: =J67*AB$5 -> 5.004753473e-05 | S67: 6.301171055e-05 | T67: =SUM(M67:R67) -> 0.04125217042
A68: 2004 | B68: 1 | C68: 3 | D68: 18 | E68: 0.0303176792 | F68: 0.004445492549 | G68: 0.00032653447 | H68: 3.2674e-05 | I68: 0.002999924606 | J68: 8.805446237e-05 | K68: 0.03821035929 | M68: 0.03478221979 | N68: =(F68*X$5)-S68 -> 0.006203677667 | O68: 0.0002171738482 | P68: 2.394823389e-05 | Q68: 0.00524715966 | R68: 5.004753473e-05 | S68: =(F68*$AC$7)*$AC$5 -> 6.756977869e-05 | T68: 0.04652422674
A69: 2004 | B69: 1 | C69: 3 | D69: 19 | E69: 0.03056026786 | F69: 0.004623238771 | G69: 0.00032653447 | H69: 3.2674e-05 | I69: 0.003124939456 | J69: 8.805446237e-05 | K69: 0.03875570902 | M69: 0.03506053173 | N69: 0.006451722232 | O69: 0.0002171738482 | P69: 2.394823389e-05 | Q69: 0.005465822779 | R69: 5.004753473e-05 | S69: 7.027145297e-05 | T69: 0.04726924636
A70: 2004 | B70: 1 | C70: 3 | D70: 20 | E70: 0.02908436176 | F70: 0.00441852618 | G70: 0.00032653447 | H70: 3.2674e-05 | I70: 0.002925094329 | J70: 8.805446237e-05 | K70: 0.0368752452 | M70: 0.03336728569 | N70: 0.006166046142 | O70: 0.0002171738482 | P70: 2.394823389e-05 | Q70: 0.005116274233 | R70: 5.004753473e-05 | S70: 6.715990025e-05 | T70: 0.04494077568
A71: 2004 | B71: 1 | C71: 3 | D71: 21 | E71: 0.02795053988 | F71: 0.004385362153 | G71: 0.00032653447 | H71: 3.2674e-05 | I71: 0.003024873154 | J71: 8.805446237e-05 | K71: 0.03580803812 | M71: 0.03206649872 | N71: 0.006119765796 | O71: 0.0002171738482 | P71: 2.394823389e-05 | Q71: 0.005290797094 | R71: 5.004753473e-05 | S71: 6.665581977e-05 | T71: 0.04376823123
A72: 2004 | B72: 1 | C72: 3 | D72: 22 | E72: 0.026781027 | F72: 0.004351235301 | G72: 0.00032653447 | H72: 3.2674e-05 | I72: 0.003134879298 | J72: 8.805446237e-05 | K72: 0.03471440453 | M72: 0.03072476495 | N72: 0.006072141829 | O72: 0.0002171738482 | P72: 2.394823389e-05 | Q72: 0.005483208529 | R72: 5.004753473e-05 | S72: 6.613710473e-05 | T72: 0.04257128493
A73: 2004 | B73: 1 | C73: 3 | D73: 23 | E73: 0.02465963895 | F73: 0.00419148178 | G73: 0.00032653447 | H73: 3.2674e-05 | I73: 0.003092233917 | J73: 8.805446237e-05 | K73: 0.03239061758 | M73: 0.02829098416 | N73: 0.005849206049 | O73: 0.0002171738482 | P73: 2.394823389e-05 | Q73: 0.005408617614 | R73: 5.004753473e-05 | S73: 6.37089126e-05 | T73: 0.03983997744
A74: 2004 | B74: 1 | C74: 3 | D74: 24 | E74: 0.02207325087 | F74: 0.00383099457 | G74: 0.00032653447 | H74: 3.2674e-05 | I74: 0.003142084225 | J74: 8.805446237e-05 | K74: 0.0294935926 | M74: 0.02532372805 | N74: 0.00534614673 | O74: 0.0002171738482 | P74: 2.394823389e-05 | Q74: 0.005495810647 | R74: 5.004753473e-05 | S74: 5.822964551e-05 | T74: 0.03645685505
A75: 2004 | B75: 1 | C75: 4 | D75: 1 | E75: 0.01808371901 | F75: 0.003387134058 | G75: 0.00032653447 | H75: 3.2674e-05 | I75: 0.00286933705 | J75: 8.805446237e-05 | K75: 0.02478745305 | M75: 0.02074670311 | N75: 0.004726740103 | O75: 0.0002171738482 | P75: 2.394823389e-05 | Q75: 0.005018749333 | R75: 5.004753473e-05 | S75: 5.148313627e-05 | T75: 0.03078336216
A76: 2004 | B76: 1 | C76: 4 | D76: 2 | E76: 0.01677539907 | F76: 0.003469072013 | G76: 0.00032653447 | H76: 3.2674e-05 | I76: 0.003029597382 | J76: 8.805446237e-05 | K76: 0.0237213314 | M76: 0.01924572173 | N76: 0.004841084387 | O76: 0.0002171738482 | P76: 2.394823389e-05 | Q76: 0.005299060228 | R76: 5.004753473e-05 | S76: 5.272856171e-05 | T76: 0.02967703596
A77: 2004 | B77: 1 | C77: 4 | D77: 3 | E77: 0.01596849251 | F77: 0.003450272074 | G77: 0.00032653447 | H77: 3.2674e-05 | I77: 0.003062040727 | J77: 8.805446237e-05 | K77: 0.02292806824 | M77: 0.0183199912 | N77: 0.004814849101 | O77: 0.0002171738482 | P77: 2.394823389e-05 | Q77: 0.00535580679 | R77: 5.004753473e-05 | S77: 5.244280985e-05 | T77: 0.0287818167
A78: 2004 | B78: 1 | C78: 4 | D78: 4 | E78: 0.01569781706 | F78: 0.00349232012 | G78: 0.00032653447 | H78: 3.2674e-05 | I78: 0.003155267187 | J78: 8.805446237e-05 | K78: 0.0227926673 | M78: 0.01800945645 | N78: 0.004873527082 | O78: 0.0002171738482 | P78: 2.394823389e-05 | Q78: 0.005518868929 | R78: 5.004753473e-05 | S78: 5.308192399e-05 | T78: 0.02869302208
A79: 2004 | B79: 1 | C79: 4 | D79: 5 | E79: 0.01604536056 | F79: 0.003477160472 | G79: 0.00032653447 | H79: 3.2674e-05 | I79: 0.003138821505 | J79: 8.805446237e-05 | K79: 0.02310860547 | M79: 0.01840817874 | N79: 0.004852371818 | O79: 0.0002171738482 | P79: 2.394823389e-05 | Q79: 0.005490103833 | R79: 5.004753473e-05 | S79: 5.285150317e-05 | T79: 0.02904182401
A80: 2004 | B80: 1 | C80: 4 | D80: 6 | E80: 0.01624631708 | F80: 0.003474278758 | G80: 0.00032653447 | H80: 3.2674e-05 | I80: 0.003137010545 | J80: 8.805446237e-05 | K80: 0.02330486931 | M80: 0.01863872784 | N80: 0.004848350391 | O80: 0.0002171738482 | P80: 2.394823389e-05 | Q80: 0.005486936288 | R80: 5.004753473e-05 | S80: 5.280770223e-05 | T80: 0.02926518414
A81: 2004 | B81: 1 | C81: 4 | D81: 7 | E81: 0.01705737004 | F81: 0.003533809016 | G81: 0.00032653447 | H81: 3.2674e-05 | I81: 0.003108245678 | J81: 8.805446237e-05 | K81: 0.02414668766 | M81: 0.01956921537 | N81: 0.00493142477 | O81: 0.0002171738482 | P81: 2.394823389e-05 | Q81: 0.005436623739 | R81: 5.004753473e-05 | S81: 5.371253928e-05 | T81: 0.03022843349
A82: 2004 | B82: 1 | C82: 4 | D82: 8 | E82: 0.01937316507 | F82: 0.003796736444 | G82: 0 | H82: 0 | I82: 0.003294510782 | J82: 8.805446237e-05 | K82: 0.02655246675 | M82: 0.02222603125 | N82: 0.005298339571 | O82: 0 | P82: 0 | Q82: 0.005762419507 | R82: 5.004753473e-05 | S82: 5.770893516e-05 | T82: 0.03333683786
A83: 2004 | B83: 1 | C83: 4 | D83: 9 | E83: 0.02090621243 | F83: 0.003687648148 | G83: 0 | H83: 0 | I83: 0.002981806391 | J83: 8.805446237e-05 | K83: 0.02766372143 | M83: 0.02398483311 | N83: 0.00514610703 | O83: 0 | P83: 0 | Q83: 0.00521546914 | R83: 5.004753473e-05 | S83: 5.605083497e-05 | T83: 0.03439645681
A84: 2004 | B84: 1 | C84: 4 | D84: 10 | E84: 0.02313503742 | F84: 0.00378363639 | G84: 0 | H84: 0 | I84: 0.003012165344 | J84: 8.805446237e-05 | K84: 0.03001889362 | M84: 0.02654187186 | N84: 0.005280058466 | O84: 0 | P84: 0 | Q84: 0.005268569899 | R84: 5.004753473e-05 | S84: 5.750981936e-05 | T84: 0.03714054776
A85: 2004 | B85: 1 | C85: 4 | D85: 11 | E85: 0.02353027877 | F85: 0.003935486267 | G85: 0 | H85: 0 | I85: 0.003069593658 | J85: 8.805446237e-05 | K85: 0.03062341316 | M85: 0.02699531592 | N85: 0.005491964724 | O85: 0 | P85: 0 | Q85: 0.0053690176 | R85: 5.004753473e-05 | S85: 5.981787916e-05 | T85: 0.03790634578
A86: 2004 | B86: 1 | C86: 4 | D86: 12 | E86: 0.02364811449 | F86: 0.003840700593 | G86: 0 | H86: 0 | I86: 0.002734710269 | J86: 8.805446237e-05 | K86: 0.03031157981 | M86: 0.02713050397 | N86: 0.005359691469 | O86: 0 | P86: 0 | Q86: 0.004783274012 | R86: 5.004753473e-05 | S86: 5.837717333e-05 | T86: 0.03732351698
A87: 2004 | B87: 1 | C87: 4 | D87: 13 | E87: 0.02337975626 | F87: 0.003749044433 | G87: 0 | H87: 0 | I87: 0.002577735163 | J87: 8.805446237e-05 | K87: 0.02979459031 | M87: 0.02682262766 | N87: 0.005231785445 | O87: 0 | P87: 0 | Q87: 0.004508709296 | R87: 5.004753473e-05 | S87: 5.698403491e-05 | T87: 0.03661316994
A88: 2004 | B88: 1 | C88: 4 | D88: 14 | E88: 0.02268732739 | F88: 0.003779136836 | G88: 0 | H88: 0 | I88: 0.00265196299 | J88: 8.805446237e-05 | K88: 0.02920648168 | M88: 0.02602823265 | N88: 0.005273779346 | O88: 0 | P88: 0 | Q88: 0.004638540979 | R88: 5.004753473e-05 | S88: 5.744142788e-05 | T88: 0.03599060051
A89: 2004 | B89: 1 | C89: 4 | D89: 15 | E89: 0.02202271161 | F89: 0.003838103016 | G89: 0 | H89: 0 | I89: 0.002879442695 | J89: 8.805446237e-05 | K89: 0.02882831178 | M89: 0.02526574645 | N89: 0.005356066555 | O89: 0 | P89: 0 | Q89: 0.005036425089 | R89: 5.004753473e-05 | S89: 5.833769116e-05 | T89: 0.03570828563
A90: 2004 | B90: 1 | C90: 4 | D90: 16 | E90: 0.02293733549 | F90: 0.003734324426 | G90: 0 | H90: 0 | I90: 0.002729880153 | J90: 8.805446237e-05 | K90: 0.02948959454 | M90: 0.02631505661 | N90: 0.005211243701 | O90: 0 | P90: 0 | Q90: 0.004774825669 | R90: 5.004753473e-05 | S90: 5.676029647e-05 | T90: 0.03635117352
A91: 2004 | B91: 1 | C91: 4 | D91: 17 | E91: 0.02557954294 | F91: 0.00378778406 | G91: 0 | H91: 0 | I91: 0.002749093003 | J91: 8.805446237e-05 | K91: 0.03220447447 | M91: 0.02934635197 | N91: 0.005285846532 | O91: 0 | P91: 0 | Q91: 0.00480843081 | R91: 5.004753473e-05 | S91: 5.757286235e-05 | T91: 0.03949067685
A92: 2004 | B92: 1 | C92: 4 | D92: 18 | E92: 0.02866944884 | F92: 0.00374957272 | G92: 0.00032653447 | H92: 3.2674e-05 | I92: 0.002537230351 | J92: 8.805446237e-05 | K92: 0.03540351485 | M92: 0.03289127325 | N92: 0.005232522669 | O92: 0.0002171738482 | P92: 2.394823389e-05 | Q92: 0.004437862444 | R92: 5.004753473e-05 | S92: 5.699206467e-05 | T92: 0.04285282798
A93: 2004 | B93: 1 | C93: 4 | D93: 19 | E93: 0.02947126585 | F93: 0.00360909434 | G93: 0.00032653447 | H93: 3.2674e-05 | I93: 0.002362107393 | J93: 8.805446237e-05 | K93: 0.03588973051 | M93: 0.03381116475 | N93: 0.005036485317 | O93: 0.0002171738482 | P93: 2.394823389e-05 | Q93: 0.004131555373 | R93: 5.004753473e-05 | S93: 5.485684727e-05 | T93: 0.04327037506
A94: 2004 | B94: 1 | C94: 4 | D94: 20 | E94: 0.02827572404 | F94: 0.003425223018 | G94: 0.00032653447 | H94: 3.2674e-05 | I94: 0.002230216531 | J94: 8.805446237e-05 | K94: 0.03437842653 | M94: 0.03243956907 | N94: 0.004779893185 | O94: 0.0002171738482 | P94: 2.394823389e-05 | Q94: 0.003900865437 | R94: 5.004753473e-05 | S94: 5.206207383e-05 | T94: 0.04141149731
A95: 2004 | B95: 1 | C95: 4 | D95: 21 | E95: 0.02735750983 | F95: 0.003362235126 | G95: 0.00032653447 | H95: 3.2674e-05 | I95: 0.002254715316 | J95: 8.805446237e-05 | K95: 0.0334217232 | M95: 0.03138613986 | N95: 0.004691993683 | O95: 0.0002171738482 | P95: 2.394823389e-05 | Q95: 0.003943716194 | R95: 5.004753473e-05 | S95: 5.110468206e-05 | T95: 0.04031301936
A96: 2004 | B96: 1 | C96: 4 | D96: 22 | E96: 0.0253821467 | F96: 0.003316171736 | G96: 0.00032653447 | H96: 3.2674e-05 | I96: 0.002246477653 | J96: 8.805446237e-05 | K96: 0.03139205902 | M96: 0.02911988743 | N96: 0.004627712298 | O96: 0.0002171738482 | P96: 2.394823389e-05 | Q96: 0.00392930772 | R96: 5.004753473e-05 | S96: 5.040453624e-05 | T96: 0.03796807706
A97: 2004 | B97: 1 | C97: 4 | D97: 23 | E97: 0.02232700234 | F97: 0.003270816805 | G97: 0.00032653447 | H97: 3.2674e-05 | I97: 0.002253249837 | J97: 8.805446237e-05 | K97: 0.02829833191 | M97: 0.02561484662 | N97: 0.004564419564 | O97: 0.0002171738482 | P97: 2.394823389e-05 | Q97: 0.003941152929 | R97: 5.004753473e-05 | S97: 4.971515871e-05 | T97: 0.03441158873
A98: 2004 | B98: 1 | C98: 4 | D98: 24 | E98: 0.01902174292 | F98: 0.003470496918 | G98: 0.00032653447 | H98: 3.2674e-05 | I98: 0.002641213204 | J98: 8.805446237e-05 | K98: 0.02558071598 | M98: 0.02182285915 | N98: 0.004843072839 | O98: 0.0002171738482 | P98: 2.394823389e-05 | Q98: 0.004619738558 | R98: 5.004753473e-05 | S98: 5.27502197e-05 | T98: 0.03157684017
A99: 2004 | B99: 1 | C99: 5 | D99: 1 | E99: 0.02103001505 | F99: 0.003876548663 | G99: 0.00032653447 | H99: 3.2674e-05 | I99: 0.003183693656 | J99: 8.805446237e-05 | K99: 0.0285375203 | M99: 0.02412686673 | N99: 0.005409717393 | O99: 0.0002171738482 | P99: 2.394823389e-05 | Q99: 0.005568589586 | R99: 5.004753473e-05 | S99: 5.892205022e-05 | T99: 0.03539634333
A100: 2004 | B100: 1 | C100: 5 | D100: 2 | E100: 0.02029420771 | F100: 0.00396999053 | G100: 0.00032653447 | H100: 3.2674e-05 | I100: 0.003494950611 | J100: 8.805446237e-05 | K100: 0.02820641179 | M100: 0.0232827054 | N100: 0.005540115367 | O100: 0.0002171738482 | P100: 2.394823389e-05 | Q100: 0.006113008247 | R100: 5.004753473e-05 | S100: 6.034233069e-05 | T100: 0.03522699863
A101: 2004 | B101: 1 | C101: 5 | D101: 3 | E101: 0.01997241962 | F101: 0.003893244237 | G101: 0.00032653447 | H101: 3.2674e-05 | I101: 0.003338914703 | J101: 8.805446237e-05 | K101: 0.02765184149 | M101: 0.02291353122 | N101: 0.005433016039 | O101: 0.0002171738482 | P101: 2.394823389e-05 | Q101: 0.00584008628 | R101: 5.004753473e-05 | S101: 5.917581653e-05 | T101: 0.03447780316
A102: 2004 | B102: 1 | C102: 5 | D102: 4 | E102: 0.0201314822 | F102: 0.003999709498 | G102: 0.00032653447 | H102: 3.2674e-05 | I102: 0.00351948899 | J102: 8.805446237e-05 | K102: 0.02809794362 | M102: 0.02309601714 | N102: 0.005581588139 | O102: 0.0002171738482 | P102: 2.394823389e-05 | Q102: 0.006155928257 | R102: 5.004753473e-05 | S102: 6.079404759e-05 | T102: 0.03512470315
A103: 2004 | B103: 1 | C103: 5 | D103: 5 | E103: 0.02078978682 | F103: 0.004063158105 | G103: 0.00032653447 | H103: 3.2674e-05 | I103: 0.003567609807 | J103: 8.805446237e-05 | K103: 0.02886781766 | M103: 0.02385126281 | N103: 0.005670130568 | O103: 0.0002171738482 | P103: 2.394823389e-05 | Q103: 0.006240096241 | R103: 5.004753473e-05 | S103: 6.175844205e-05 | T103: 0.03605265924
A104: 2004 | B104: 1 | C104: 5 | D104: 6 | E104: 0.02256203835 | F104: 0.004261001624 | G104: 0.00032653447 | H104: 3.2674e-05 | I104: 0.00372282261 | J104: 8.805446237e-05 | K104: 0.03099312552 | M104: 0.02588449372 | N104: 0.005946220878 | O104: 0.0002171738482 | P104: 2.394823389e-05 | Q104: 0.006511578517 | R104: 5.004753473e-05 | S104: 6.47655875e-05 | T104: 0.03863346273
A105: 2004 | B105: 1 | C105: 5 | D105: 7 | E105: 0.0254358854 | F105: 0.004630235246 | G105: 0.00032653447 | H105: 3.2674e-05 | I105: 0.003736208566 | J105: 8.805446237e-05 | K105: 0.03424959215 | M105: 0.02918153961 | N105: 0.006461485801 | O105: 0.0002171738482 | P105: 2.394823389e-05 | Q105: 0.006534991855 | R105: 5.004753473e-05 | S105: 7.03777967e-05 | T105: 0.04246918689
A106: 2004 | B106: 1 | C106: 5 | D106: 8 | E106: 0.02738501017 | F106: 0.005228249138 | G106: 0 | H106: 0 | I106: 0.003578167305 | J106: 8.805446237e-05 | K106: 0.03627948107 | M106: 0.03141768987 | N106: 0.007296013221 | O106: 0 | P106: 0 | Q106: 0.006258562332 | R106: 5.004753473e-05 | S106: 7.946737809e-05 | T106: 0.04502231295
A107: 2004 | B107: 1 | C107: 5 | D107: 9 | E107: 0.02765314116 | F107: 0.005658837489 | G107: 0 | H107: 0 | I107: 0.003536777274 | J107: 8.805446237e-05 | K107: 0.03693681039 | M107: 0.03172530547 | N107: 0.007896898569 | O107: 0 | P107: 0 | Q107: 0.006186167144 | R107: 5.004753473e-05 | S107: 8.601215558e-05 | T107: 0.04585841872
A108: 2004 | B108: 1 | C108: 5 | D108: 10 | E108: 0.02654284378 | F108: 0.00585845881 | G108: 0 | H108: 0 | I108: 0.003483481171 | J108: 8.805446237e-05 | K108: 0.03597283822 | M108: 0.03045150719 | N108: 0.0081754698 | O108: 0 | P108: 0 | Q108: 0.006092947082 | R108: 5.004753473e-05 | S108: 8.904632296e-05 | T108: 0.04476997161
A109: 2004 | B109: 1 | C109: 5 | D109: 11 | E109: 0.02608163544 | F109: 0.005847548233 | G109: 0 | H109: 0 | I109: 0.00312619108 | J109: 8.805446237e-05 | K109: 0.03514342921 | M109: 0.02992238193 | N109: 0.008160244106 | O109: 0 | P109: 0 | Q109: 0.005468011992 | R109: 5.004753473e-05 | S109: 8.888048637e-05 | T109: 0.04360068556
A110: 2004 | B110: 1 | C110: 5 | D110: 12 | E110: 0.025682131 | F110: 0.005808396937 | G110: 0 | H110: 0 | I110: 0.00319458893 | J110: 8.805446237e-05 | K110: 0.03477317133 | M110: 0.02946404701 | N110: 0.008105608537 | O110: 0 | P110: 0 | Q110: 0.005587646478 | R110: 5.004753473e-05 | S110: 8.828540173e-05 | T110: 0.04320734956
A111: 2004 | B111: 1 | C111: 5 | D111: 13 | E111: 0.02515179881 | F111: 0.005653096849 | G111: 0 | H111: 0 | I111: 0.002961102414 | J111: 8.805446237e-05 | K111: 0.03385405254 | M111: 0.02885561882 | N111: 0.007888887515 | O111: 0 | P111: 0 | Q111: 0.005179255872 | R111: 5.004753473e-05 | S111: 8.592490006e-05 | T111: 0.04197380974
A112: 2004 | B112: 1 | C112: 5 | D112: 14 | E112: 0.02416054634 | F112: 0.005575823192 | G112: 0 | H112: 0 | I112: 0.002696214792 | J112: 8.805446237e-05 | K112: 0.03252063879 | M112: 0.02771839584 | N112: 0.007781052251 | O112: 0 | P112: 0 | Q112: 0.004715941681 | R112: 5.004753473e-05 | S112: 8.475037015e-05 | T112: 0.04026543731
A113: 2004 | B113: 1 | C113: 5 | D113: 15 | E113: 0.02370575487 | F113: 0.005483667282 | G113: 0 | H113: 0 | I113: 0.002710613812 | J113: 8.805446237e-05 | K113: 0.03198809042 | M113: 0.02719663239 | N113: 0.007652448828 | O113: 0 | P113: 0 | Q113: 0.004741126967 | R113: 5.004753473e-05 | S113: 8.334963574e-05 | T113: 0.03964025572
A114: 2004 | B114: 1 | C114: 5 | D114: 16 | E114: 0.02457593026 | F114: 0.005419428944 | G114: 0 | H114: 0 | I114: 0.00296243713 | J114: 8.805446237e-05 | K114: 0.0330458508 | M114: 0.02819494864 | N114: 0.007562804332 | O114: 0 | P114: 0 | Q114: 0.005181590421 | R114: 5.004753473e-05 | S114: 8.237323769e-05 | T114: 0.04098939092
A115: 2004 | B115: 1 | C115: 5 | D115: 17 | E115: 0.02761193148 | F115: 0.005139027247 | G115: 0 | H115: 0 | I115: 0.002686904749 | J115: 8.805446237e-05 | K115: 0.03552591794 | M115: 0.03167802731 | N115: 0.007171504216 | O115: 0 | P115: 0 | Q115: 0.004699657511 | R115: 5.004753473e-05 | S115: 7.811123962e-05 | T115: 0.04359923657
A116: 2004 | B116: 1 | C116: 5 | D116: 18 | E116: 0.03223729357 | F116: 0.004951436068 | G116: 0.00032653447 | H116: 3.2674e-05 | I116: 0.002498567879 | J116: 8.805446237e-05 | K116: 0.04013456045 | M116: 0.03698451398 | N116: 0.006909721029 | O116: 0.0002171738482 | P116: 2.394823389e-05 | Q116: 0.004370238023 | R116: 5.004753473e-05 | S116: 7.525992578e-05 | T116: 0.04855564265
A117: 2004 | B117: 1 | C117: 5 | D117: 19 | E117: 0.03358675634 | F117: 0.004938638319 | G117: 0.00032653447 | H117: 3.2674e-05 | I117: 0.002532016619 | J117: 8.805446237e-05 | K117: 0.04150467422 | M117: 0.03853269683 | N117: 0.006891861792 | O117: 0.0002171738482 | P117: 2.394823389e-05 | Q117: 0.00442874312 | R117: 5.004753473e-05 | S117: 7.506540492e-05 | T117: 0.05014447136
A118: 2004 | B118: 1 | C118: 5 | D118: 20 | E118: 0.03263732898 | F118: 0.004997894608 | G118: 0.00032653447 | H118: 3.2674e-05 | I118: 0.002963036329 | J118: 8.805446237e-05 | K118: 0.04104552285 | M118: 0.03744345807 | N118: 0.006974553846 | O118: 0.0002171738482 | P118: 2.394823389e-05 | Q118: 0.005182638478 | R118: 5.004753473e-05 | S118: 7.596607773e-05 | T118: 0.04989182001
A119: 2004 | B119: 1 | C119: 5 | D119: 21 | E119: 0.03109485946 | F119: 0.004795677 | G119: 0.00032653447 | H119: 3.2674e-05 | I119: 0.002769990154 | J119: 8.805446237e-05 | K119: 0.03910778954 | M119: 0.03567384656 | N119: 0.006692359502 | O119: 0.0002171738482 | P119: 2.394823389e-05 | Q119: 0.004844981958 | R119: 5.004753473e-05 | S119: 7.28924478e-05 | T119: 0.04750235764
A120: 2004 | B120: 1 | C120: 5 | D120: 22 | E120: 0.02977670547 | F120: 0.004613407936 | G120: 0.00032653447 | H120: 3.2674e-05 | I120: 0.002847289674 | J120: 8.805446237e-05 | K120: 0.03768466601 | M120: 0.034161583 | N120: 0.006438003317 | O120: 0.0002171738482 | P120: 2.394823389e-05 | Q120: 0.00498018633 | R120: 5.004753473e-05 | S120: 7.012202805e-05 | T120: 0.04587094226
A121: 2004 | B121: 1 | C121: 5 | D121: 23 | E121: 0.02595119324 | F121: 0.004298824313 | G121: 0.00032653447 | H121: 3.2674e-05 | I121: 0.002728613665 | J121: 8.805446237e-05 | K121: 0.03342589415 | M121: 0.02977273099 | N121: 0.005999002379 | O121: 0.0002171738482 | P121: 2.394823389e-05 | Q121: 0.004772610459 | R121: 5.004753473e-05 | S121: 6.534047785e-05 | T121: 0.04083551344
A122: 2004 | B122: 1 | C122: 5 | D122: 24 | E122: 0.02248214247 | F122: 0.00416281778 | G122: 0.00032653447 | H122: 3.2674e-05 | I122: 0.002904307882 | J122: 8.805446237e-05 | K122: 0.02999653106 | M122: 0.02579283248 | N122: 0.005809205482 | O122: 0.0002171738482 | P122: 2.394823389e-05 | Q122: 0.005079916717 | R122: 5.004753473e-05 | S122: 6.32732308e-05 | T122: 0.03697312429
A123: 2004 | B123: 1 | C123: 6 | D123: 1 | E123: 0.02115161454 | F123: 0.004248538331 | G123: 0.00032653447 | H123: 3.2674e-05 | I123: 0.003197051766 | J123: 8.805446237e-05 | K123: 0.02904446757 | M123: 0.0242663728 | N123: 0.005928828373 | O123: 0.0002171738482 | P123: 2.394823389e-05 | Q123: 0.005591954218 | R123: 5.004753473e-05 | S123: 6.457615025e-05 | T123: 0.03607832501
A124: 2004 | B124: 1 | C124: 6 | D124: 2 | E124: 0.02040531084 | F124: 0.004355614722 | G124: 0.00032653447 | H124: 3.2674e-05 | I124: 0.003444610671 | J124: 8.805446237e-05 | K124: 0.02865279917 | M124: 0.02341016942 | N124: 0.006078253304 | O124: 0.0002171738482 | P124: 2.394823389e-05 | Q124: 0.006024958799 | R124: 5.004753473e-05 | S124: 6.620367025e-05 | T124: 0.03580455114
A125: 2004 | B125: 1 | C125: 6 | D125: 3 | E125: 0.02030522976 | F125: 0.004208277902 | G125: 0.00032653447 | H125: 3.2674e-05 | I125: 0.003220858258 | J125: 8.805446237e-05 | K125: 0.02818162885 | M125: 0.02329535054 | N125: 0.005872645009 | O125: 0.0002171738482 | P125: 2.394823389e-05 | Q125: 0.005633594086 | R125: 5.004753473e-05 | S125: 6.396420719e-05 | T125: 0.03509275925
A126: 2004 | B126: 1 | C126: 6 | D126: 4 | E126: 0.02028731911 | F126: 0.004277698814 | G126: 0.00032653447 | H126: 3.2674e-05 | I126: 0.003460583375 | J126: 8.805446237e-05 | K126: 0.02847286423 | M126: 0.02327480238 | N126: 0.00596952178 | O126: 0.0002171738482 | P126: 2.394823389e-05 | Q126: 0.006052896612 | R126: 5.004753473e-05 | S126: 6.501937838e-05 | T126: 0.03558839039
A127: 2004 | B127: 1 | C127: 6 | D127: 5 | E127: 0.02149283184 | F127: 0.004208576965 | G127: 0.00032653447 | H127: 3.2674e-05 | I127: 0.003391237438 | J127: 8.805446237e-05 | K127: 0.02953990918 | M127: 0.0246578373 | N127: 0.005873062352 | O127: 0.0002171738482 | P127: 2.394823389e-05 | Q127: 0.005931603829 | R127: 5.004753473e-05 | S127: 6.396875284e-05 | T127: 0.0367536731
A128: 2004 | B128: 1 | C128: 6 | D128: 6 | E128: 0.02230790678 | F128: 0.004405512836 | G128: 0.00032653447 | H128: 3.2674e-05 | I128: 0.003489787901 | J128: 8.805446237e-05 | K128: 0.03065047045 | M128: 0.02559293907 | N128: 0.006147886042 | O128: 0.0002171738482 | P128: 2.394823389e-05 | Q128: 0.006103978164 | R128: 5.004753473e-05 | S128: 6.696210242e-05 | T128: 0.0381359729
A129: 2004 | B129: 1 | C129: 6 | D129: 7 | E129: 0.02558270374 | F129: 0.004864015661 | G129: 0.00032653447 | H129: 3.2674e-05 | I129: 0.003750989386 | J129: 8.805446237e-05 | K129: 0.03464497172 | M129: 0.02934997822 | N129: 0.006787725992 | O129: 0.0002171738482 | P129: 2.394823389e-05 | Q129: 0.006560844945 | R129: 5.004753473e-05 | S129: 7.393116918e-05 | T129: 0.04298971877
A130: 2004 | B130: 1 | C130: 6 | D130: 8 | E130: 0.0289683028 | F130: 0.005380166686 | G130: 0 | H130: 0 | I130: 0.003684913125 | J130: 8.805446237e-05 | K130: 0.03812143707 | M130: 0.03323413603 | N130: 0.007508013914 | O130: 0 | P130: 0 | Q130: 0.006445271143 | R130: 5.004753473e-05 | S130: 8.177646645e-05 | T130: 0.04723746863
A131: 2004 | B131: 1 | C131: 6 | D131: 9 | E131: 0.02776709255 | F131: 0.005811969936 | G131: 0 | H131: 0 | I131: 0.003682704857 | J131: 8.805446237e-05 | K131: =SUM(E131:J131) -> 0.0373498218 | M131: =E131*W$5 -> 0.03185603718 | N131: 0.00811059465 | O131: =G131*Y$5 -> 0 | P131: =H131*Z$5 -> 0 | Q131: =I131*AA$5 -> 0.006441408668 | R131: =J131*AB$5 -> 5.004753473e-05 | S131: 8.833970993e-05 | T131: =SUM(M131:R131) -> 0.04645808803
A132: 2004 | B132: 1 | C132: 6 | D132: 10 | E132: 0.02624966233 | F132: 0.006032394505 | G132: 0 | H132: 0 | I132: 0.003669967615 | J132: 8.805446237e-05 | K132: 0.03604007892 | M132: 0.03011515224 | N132: =(F132*X$5)-S132 -> 0.008418196781 | O132: 0 | P132: 0 | Q132: 0.006419129994 | R132: 5.004753473e-05 | S132: =(F132*$AC$7)*$AC$5 -> 9.16900787e-05 | T132: 0.04500252655
A133: 2004 | B133: 1 | C133: 6 | D133: 11 | E133: 0.02509776677 | F133: 0.006243751177 | G133: 0 | H133: 0 | I133: 0.003645564555 | J133: 8.805446237e-05 | K133: 0.03507513697 | M133: 0.02879363009 | N133: 0.008713144674 | O133: 0 | P133: 0 | Q133: 0.00637644667 | R133: 5.004753473e-05 | S133: 9.490261889e-05 | T133: 0.04393326897
A134: 2004 | B134: 1 | C134: 6 | D134: 12 | E134: 0.02461693282 | F134: 0.006090865714 | G134: 0 | H134: 0 | I134: 0.003449921216 | J134: 8.805446237e-05 | K134: 0.03424577421 | M134: 0.02824198918 | N134: 0.008499793258 | O134: 0 | P134: 0 | Q134: 0.00603424746 | R134: 5.004753473e-05 | S134: 9.257881861e-05 | T134: 0.04282607743
A135: 2004 | B135: 1 | C135: 6 | D135: 13 | E135: 0.02436973599 | F135: 0.005890083286 | G135: 0 | H135: 0 | I135: 0.003228382827 | J135: 8.805446237e-05 | K135: 0.03357625657 | M135: 0.02795839048 | N135: 0.008219601705 | O135: 0 | P135: 0 | Q135: 0.005646755289 | R135: 5.004753473e-05 | S135: 8.952700285e-05 | T135: 0.04187479501
A136: 2004 | B136: 1 | C136: 6 | D136: 14 | E136: 0.02328211078 | F136: 0.006009980821 | G136: 0 | H136: 0 | I136: 0.003385160368 | J136: 8.805446237e-05 | K136: 0.03276530643 | M136: 0.02671060305 | N136: 0.008386918521 | O136: 0 | P136: 0 | Q136: 0.005920974443 | R136: 5.004753473e-05 | S136: 9.134939931e-05 | T136: 0.04106854354
A137: 2004 | B137: 1 | C137: 6 | D137: 15 | E137: 0.02339634922 | F137: 0.006045354604 | G137: 0 | H137: 0 | I137: 0.003679099533 | J137: 8.805446237e-05 | K137: 0.03320885782 | M137: 0.02684166408 | N137: 0.008436282577 | O137: 0 | P137: 0 | Q137: 0.006435102607 | R137: 5.004753473e-05 | S137: 9.188706722e-05 | T137: 0.0417630968
A138: 2004 | B138: 1 | C138: 6 | D138: 16 | E138: 0.02447674418 | F138: 0.005778973323 | G138: 0 | H138: 0 | I138: 0.003475184409 | J138: 8.805446237e-05 | K138: 0.03381895637 | M138: 0.02808115654 | N138: 0.008064547931 | O138: 0 | P138: 0 | Q138: 0.006078435238 | R138: 5.004753473e-05 | S138: 8.78381741e-05 | T138: 0.04227418725
A139: 2004 | B139: 1 | C139: 6 | D139: 17 | E139: 0.02749021288 | F139: 0.005604101333 | G139: 0 | H139: 0 | I139: 0.003418428194 | J139: 8.805446237e-05 | K139: 0.03660079687 | M139: 0.03153838459 | N139: 0.007820514352 | O139: 0 | P139: 0 | Q139: 0.005979163103 | R139: 5.004753473e-05 | S139: 8.518018705e-05 | T139: 0.04538810958
A140: 2004 | B140: 1 | C140: 6 | D140: 18 | E140: 0.03178204675 | F140: 0.005500201244 | G140: 0.00032653447 | H140: 3.2674e-05 | I140: 0.003290933221 | J140: 8.805446237e-05 | K140: 0.04102044415 | M140: 0.03646222813 | N140: 0.007675521945 | O140: 0.0002171738482 | P140: 2.394823389e-05 | Q140: 0.005756162006 | R140: 5.004753473e-05 | S140: 8.360094561e-05 | T140: 0.0501850817
A141: 2004 | B141: 1 | C141: 6 | D141: 19 | E141: 0.03409797115 | F141: 0.005648471502 | G141: 0.00032653447 | H141: 3.2674e-05 | I141: 0.003438691725 | J141: 8.805446237e-05 | K141: 0.04363239731 | M141: 0.03911919244 | N141: 0.00788243285 | O141: 0.0002171738482 | P141: 2.394823389e-05 | Q141: 0.006014605987 | R141: 5.004753473e-05 | S141: 8.585459656e-05 | T141: 0.05330740089
A142: 2004 | B142: 1 | C142: 6 | D142: 20 | E142: 0.03370587673 | F142: 0.005507643318 | G142: 0.00032653447 | H142: 3.2674e-05 | I142: 0.003440181762 | J142: 8.805446237e-05 | K142: 0.04310096474 | M142: 0.03866935873 | N142: 0.007685907348 | O142: 0.0002171738482 | P142: 2.394823389e-05 | Q142: 0.006017212207 | R142: 5.004753473e-05 | S142: 8.371406228e-05 | T142: 0.0526636479
A143: 2004 | B143: 1 | C143: 6 | D143: 21 | E143: 0.03311158585 | F143: 0.005367802074 | G143: 0.00032653447 | H143: 3.2674e-05 | I143: 0.003380938353 | J143: 8.805446237e-05 | K143: 0.04230758921 | M143: 0.03798755337 | N143: 0.007490759117 | O143: 0.0002171738482 | P143: 2.394823389e-05 | Q143: 0.005913589729 | R143: 5.004753473e-05 | S143: 8.158852909e-05 | T143: 0.05168307183
A144: 2004 | B144: 1 | C144: 6 | D144: 22 | E144: 0.03099491818 | F144: 0.004950855805 | G144: 0.00032653447 | H144: 3.2674e-05 | I144: 0.002952778716 | J144: 8.805446237e-05 | K144: 0.03934581564 | M144: 0.03555918807 | N144: 0.006908911272 | O144: 0.0002171738482 | P144: 2.394823389e-05 | Q144: 0.005164696915 | R144: 5.004753473e-05 | S144: 7.5251106e-05 | T144: 0.04792396588
A145: 2004 | B145: 1 | C145: 6 | D145: 23 | E145: 0.0277359705 | F145: 0.004590167454 | G145: 0.00032653447 | H145: 3.2674e-05 | I145: 0.002808895482 | J145: 8.805446237e-05 | K145: 0.03558229637 | M145: 0.03182033215 | N145: 0.006405571262 | O145: 0.0002171738482 | P145: 2.394823389e-05 | Q145: 0.004913031157 | R145: 5.004753473e-05 | S145: 6.976878165e-05 | T145: 0.04343010418
A146: 2004 | B146: 1 | C146: 6 | D146: 24 | E146: 0.02432031792 | F146: 0.004227506267 | G146: 0.00032653447 | H146: 3.2674e-05 | I146: 0.002923278225 | J146: 8.805446237e-05 | K146: 0.03191836534 | M146: 0.02790169516 | N146: 0.005899478162 | O146: 0.0002171738482 | P146: 2.394823389e-05 | Q146: 0.00511309769 | R146: 5.004753473e-05 | S146: 6.425647095e-05 | T146: 0.03920544063
A147: 2004 | B147: 1 | C147: 7 | D147: 1 | E147: 0.02222480987 | F147: 0.004326578477 | G147: 0.00032653447 | H147: 3.2674e-05 | I147: 0.003310262145 | J147: 8.805446237e-05 | K147: 0.03030891343 | M147: 0.02549760543 | N147: 0.006037733271 | O147: 0.0002171738482 | P147: 2.394823389e-05 | Q147: 0.005789970172 | R147: 5.004753473e-05 | S147: 6.576233049e-05 | T147: 0.03761647849
A148: 2004 | B148: 1 | C148: 7 | D148: 2 | E148: 0.02122779528 | F148: 0.004402213631 | G148: 0.00032653447 | H148: 3.2674e-05 | I148: 0.003495245142 | J148: 8.805446237e-05 | K148: 0.02957251698 | M148: 0.02435377181 | N148: 0.006143282006 | O148: 0.0002171738482 | P148: 2.394823389e-05 | Q148: 0.00611352341 | R148: 5.004753473e-05 | S148: 6.691195576e-05 | T148: 0.03690174684
A149: 2004 | B149: 1 | C149: 7 | D149: 3 | E149: 0.02163416156 | F149: 0.00431871483 | G149: 0.00032653447 | H149: 3.2674e-05 | I149: 0.003401534332 | J149: 8.805446237e-05 | K149: 0.02980167365 | M149: 0.02481997904 | N149: 0.006026759564 | O149: 0.0002171738482 | P149: 2.394823389e-05 | Q149: 0.005949614096 | R149: 5.004753473e-05 | S149: 6.564280606e-05 | T149: 0.03708752232
A150: 2004 | B150: 1 | C150: 7 | D150: 4 | E150: 0.02150323557 | F150: 0.004386434312 | G150: 0.00032653447 | H150: 3.2674e-05 | I150: 0.003620088861 | J150: 8.805446237e-05 | K150: 0.02995702168 | M150: 0.02466977307 | N150: 0.006121261992 | O150: 0.0002171738482 | P150: 2.394823389e-05 | Q150: 0.006331887206 | R150: 5.004753473e-05 | S150: 6.667211618e-05 | T150: 0.03741409188
A151: 2004 | B151: 1 | C151: 7 | D151: 5 | E151: 0.02254234378 | F151: 0.004291314433 | G151: 0.00032653447 | H151: 3.2674e-05 | I151: 0.003484591038 | J151: 8.805446237e-05 | K151: 0.03076551218 | M151: 0.02586189895 | N151: 0.005988522355 | O151: 0.0002171738482 | P151: 2.394823389e-05 | Q151: 0.006094888346 | R151: 5.004753473e-05 | S151: 6.522633057e-05 | T151: 0.03823647927
A152: 2004 | B152: 1 | C152: 7 | D152: 6 | E152: 0.02404936337 | F152: 0.004579251143 | G152: 0.00032653447 | H152: 3.2674e-05 | I152: 0.003787245395 | J152: 8.805446237e-05 | K152: 0.03286312284 | M152: 0.02759084022 | N152: 0.006390337568 | O152: 0.0002171738482 | P152: 2.394823389e-05 | Q152: 0.006624260227 | R152: 5.004753473e-05 | S152: 6.960285793e-05 | T152: 0.04089660763
A153: 2004 | B153: 1 | C153: 7 | D153: 7 | E153: 0.02693681863 | F153: 0.004965594322 | G153: 0.00032653447 | H153: 3.2674e-05 | I153: 0.003922490089 | J153: 8.805446237e-05 | K153: 0.03627216597 | M153: 0.03090349825 | N153: 0.00692947885 | O153: 0.0002171738482 | P153: 2.394823389e-05 | Q153: 0.006860816341 | R153: 5.004753473e-05 | S153: 7.54751258e-05 | T153: 0.04498496306
A154: 2004 | B154: 1 | C154: 7 | D154: 8 | E154: 0.02973995121 | F154: 0.00539098998 | G154: 0 | H154: 0 | I154: 0.003666599303 | J154: 8.805446237e-05 | K154: 0.03888559496 | M154: 0.03411941636 | N154: 0.007523117802 | O154: 0 | P154: 0 | Q154: 0.00641323849 | R154: 5.004753473e-05 | S154: 8.194097635e-05 | T154: 0.04810582019
A155: 2004 | B155: 1 | C155: 7 | D155: 9 | E155: 0.02854499832 | F155: 0.005838325983 | G155: 0 | H155: 0 | I155: 0.003676962334 | J155: 8.805446237e-05 | K155: 0.0381483411 | M155: 0.03274849631 | N155: 0.008147374472 | O155: 0 | P155: 0 | Q155: 0.006431364437 | R155: 5.004753473e-05 | S155: 8.874031173e-05 | T155: 0.04737728276
A156: 2004 | B156: 1 | C156: 7 | D156: 10 | E156: 0.02735672546 | F156: 0.006099556715 | G156: 0 | H156: 0 | I156: 0.003767194844 | J156: 8.805446237e-05 | K156: 0.03731153148 | M156: 0.03138523999 | N156: 0.008511921535 | O156: 0 | P156: 0 | Q156: 0.006589189865 | R156: 5.004753473e-05 | S156: 9.271091847e-05 | T156: 0.04653639893
A157: 2004 | B157: 1 | C157: 7 | D157: 11 | E157: 0.02648260309 | F157: 0.006358771029 | G157: 0 | H157: 0 | I157: 0.003833665787 | J157: 8.805446237e-05 | K157: 0.03676309437 | M157: 0.03038239554 | N157: 0.008873654692 | O157: 0 | P157: 0 | Q157: 0.006705454005 | R157: 5.004753473e-05 | S157: 9.665087645e-05 | T157: 0.04601155177
A158: 2004 | B158: 1 | C158: 7 | D158: 12 | E158: 0.02547160249 | F158: 0.006122368754 | G158: 0 | H158: 0 | I158: 0.003496702691 | J158: 8.805446237e-05 | K158: 0.0351787284 | M158: 0.02922251636 | N158: 0.0085437557 | O158: 0 | P158: 0 | Q158: 0.006116072806 | R158: 5.004753473e-05 | S158: 9.305765271e-05 | T158: 0.0439323924
A159: 2004 | B159: 1 | C159: 7 | D159: 13 | E159: 0.02544413878 | F159: 0.005966394569 | G159: 0 | H159: 0 | I159: 0.003336836974 | J159: 8.805446237e-05 | K159: 0.03483542478 | M159: 0.02919100837 | N159: 0.008326093976 | O159: 0 | P159: 0 | Q159: 0.00583645213 | R159: 5.004753473e-05 | S159: 9.068690502e-05 | T159: 0.04340360202
A160: 2004 | B160: 1 | C160: 7 | D160: 14 | E160: 0.02446954508 | F160: 0.006114013556 | G160: 0 | H160: 0 | I160: 0.003546715294 | J160: 8.805446237e-05 | K160: 0.0342183284 | M160: 0.02807289732 | N160: 0.008532096034 | O160: 0 | P160: 0 | Q160: 0.006203549708 | R160: 5.004753473e-05 | S160: 9.293065691e-05 | T160: 0.0428585906
A161: 2004 | B161: 1 | C161: 7 | D161: 15 | E161: 0.02398533375 | F161: 0.006058575056 | G161: 0 | H161: 0 | I161: 0.003670961844 | J161: 8.805446237e-05 | K161: 0.03380292511 | M161: 0.02751738168 | N161: 0.008454731696 | O161: 0 | P161: 0 | Q161: 0.006420868997 | R161: 5.004753473e-05 | S161: 9.2088013e-05 | T161: 0.04244302991
A162: 2004 | B162: 1 | C162: 7 | D162: 16 | E162: 0.02517656716 | F162: 0.005802499105 | G162: 0 | H162: 0 | I162: 0.003487649195 | J162: 8.805446237e-05 | K162: 0.03455476992 | M162: 0.02888403451 | N162: 0.008097378121 | O162: 0 | P162: 0 | Q162: 0.00610023736 | R162: 5.004753473e-05 | S162: 8.819575694e-05 | T162: 0.04313169753
A163: 2004 | B163: 1 | C163: 7 | D163: 17 | E163: 0.02849411455 | F163: 0.00565387002 | G163: 0 | H163: 0 | I163: 0.003502909311 | J163: 8.805446237e-05 | K163: 0.03773894834 | M163: 0.03269011946 | N163: 0.007889966474 | O163: 0 | P163: 0 | Q163: 0.006126928786 | R163: 5.004753473e-05 | S163: 8.593665197e-05 | T163: 0.04675706226
A164: 2004 | B164: 1 | C164: 7 | D164: 18 | E164: 0.03283904381 | F164: 0.00555582741 | G164: 0.00032653447 | H164: 3.2674e-05 | I164: 0.00337783414 | J164: 8.805446237e-05 | K164: 0.04221996829 | M164: 0.03767487715 | N164: 0.00775314817 | O164: 0.0002171738482 | P164: 2.394823389e-05 | Q164: 0.005908160159 | R164: 5.004753473e-05 | S164: 8.444644196e-05 | T164: 0.0516273551
A165: 2004 | B165: 1 | C165: 7 | D165: 19 | E165: 0.03414909903 | F165: 0.005550012916 | G165: 0.00032653447 | H165: 3.2674e-05 | I165: 0.003225391278 | J165: 8.805446237e-05 | K165: 0.04337176615 | M165: 0.03917784934 | N165: 0.007745034052 | O165: 0.0002171738482 | P165: 2.394823389e-05 | Q165: 0.005641522779 | R165: 5.004753473e-05 | S165: 8.435806388e-05 | T165: 0.05285557579
A166: 2004 | B166: 1 | C166: 7 | D166: 20 | E166: 0.03375823502 | F166: 0.005413197978 | G166: 0.00032653447 | H166: 3.2674e-05 | I166: 0.003220942615 | J166: 8.805446237e-05 | K166: 0.04283963855 | M166: 0.03872942723 | N166: 0.007554109028 | O166: 0.0002171738482 | P166: 2.394823389e-05 | Q166: 0.005633741634 | R166: 5.004753473e-05 | S166: 8.227852939e-05 | T166: 0.05220844751
A167: 2004 | B167: 1 | C167: 7 | D167: 21 | E167: 0.03268194784 | F167: 0.005196863609 | G167: 0.00032653447 | H167: 3.2674e-05 | I167: 0.003016744132 | J167: 8.805446237e-05 | K167: 0.04134281851 | M167: 0.03749464744 | N167: 0.007252214766 | O167: 0.0002171738482 | P167: 2.394823389e-05 | Q167: 0.005276578644 | R167: 5.004753473e-05 | S167: 7.899033011e-05 | T167: 0.05031461047
A168: 2004 | B168: 1 | C168: 7 | D168: 22 | E168: 0.03152594984 | F168: 0.004914089685 | G168: 0.00032653447 | H168: 3.2674e-05 | I168: 0.002856562645 | J168: 8.805446237e-05 | K168: 0.0397438651 | M168: 0.03616841873 | N168: 0.006857604212 | O168: 0.0002171738482 | P168: 2.394823389e-05 | Q168: 0.004996405659 | R168: 5.004753473e-05 | S168: 7.469227511e-05 | T168: 0.04831359822
A169: 2004 | B169: 1 | C169: 7 | D169: 23 | E169: 0.02807700477 | F169: 0.004541436027 | G169: 0.00032653447 | H169: 3.2674e-05 | I169: 0.002677767554 | J169: 8.805446237e-05 | K169: 0.03574347129 | M169: 0.03221158667 | N169: 0.006337566634 | O169: 0.0002171738482 | P169: 2.394823389e-05 | Q169: 0.004683675669 | R169: 5.004753473e-05 | S169: 6.902808269e-05 | T169: 0.04352399859
A170: 2004 | B170: 1 | C170: 7 | D170: 24 | E170: 0.02461680767 | F170: 0.004173273273 | G170: 0.00032653447 | H170: 3.2674e-05 | I170: 0.002791539479 | J170: 8.805446237e-05 | K170: 0.03202888335 | M170: 0.0282418456 | N170: 0.005823796106 | O170: 0.0002171738482 | P170: 2.394823389e-05 | Q170: 0.004882673822 | R170: 5.004753473e-05 | S170: 6.343215028e-05 | T170: 0.03923948514
A171: 2004 | B171: 1 | C171: 8 | D171: 1 | E171: 0.02122259675 | F171: 0.004252744529 | G171: 0.00032653447 | H171: 3.2674e-05 | I171: 0.003197406463 | J171: 8.805446237e-05 | K171: 0.02912001067 | M171: 0.02434780775 | N171: 0.005934698115 | O171: 0.0002171738482 | P171: 2.394823389e-05 | Q171: 0.005592574618 | R171: 5.004753473e-05 | S171: 6.464008284e-05 | T171: 0.0361662501
A172: 2004 | B172: 1 | C172: 8 | D172: 2 | E172: 0.02047313427 | F172: 0.004361809922 | G172: 0.00032653447 | H172: 3.2674e-05 | I172: 0.003445117225 | J172: 8.805446237e-05 | K172: 0.02872732435 | M172: 0.02348798044 | N172: 0.006086898696 | O172: 0.0002171738482 | P172: 2.394823389e-05 | Q172: 0.006025844812 | R172: 5.004753473e-05 | S172: 6.629783491e-05 | T172: 0.03589189357
A173: 2004 | B173: 1 | C173: 8 | D173: 3 | E173: 0.02037475807 | F173: 0.004212844057 | G173: 0.00032653447 | H173: 3.2674e-05 | I173: 0.003220064545 | J173: 8.805446237e-05 | K173: 0.0282549296 | M173: 0.02337511749 | N173: 0.005879017071 | O173: 0.0002171738482 | P173: 2.394823389e-05 | Q173: 0.005632205805 | R173: 5.004753473e-05 | S173: 6.403361099e-05 | T173: 0.03517750998
A174: 2004 | B174: 1 | C174: 8 | D174: 4 | E174: 0.02035347656 | F174: 0.004286175839 | G174: 0.00032653447 | H174: 3.2674e-05 | I174: 0.003460007289 | J174: 8.805446237e-05 | K174: 0.02854692262 | M174: 0.0233507021 | N174: 0.005981351455 | O174: 0.0002171738482 | P174: 2.394823389e-05 | Q174: 0.006051888981 | R174: 5.004753473e-05 | S174: 6.514822591e-05 | T174: 0.03567511215
A175: 2004 | B175: 1 | C175: 8 | D175: 5 | E175: 0.02156413842 | F175: 0.00421497203 | G175: 0.00032653447 | H175: 3.2674e-05 | I175: 0.003390367581 | J175: 8.805446237e-05 | K175: 0.02961674096 | M175: 0.02473964439 | N175: 0.005881986654 | O175: 0.0002171738482 | P175: 2.394823389e-05 | Q175: 0.005930082364 | R175: 5.004753473e-05 | S175: 6.406595536e-05 | T175: 0.03684288302
A176: 2004 | B176: 1 | C176: 8 | D176: 6 | E176: 0.02237892624 | F176: 0.00441492796 | G176: 0.00032653447 | H176: 3.2674e-05 | I176: 0.003489070864 | J176: 8.805446237e-05 | K176: 0.030730188 | M176: 0.02567441677 | N176: 0.006161024832 | O176: 0.0002171738482 | P176: 2.394823389e-05 | Q176: 0.006102723997 | R176: 5.004753473e-05 | S176: 6.710520868e-05 | T176: 0.03822933521
A177: 2004 | B177: 1 | C177: 8 | D177: 7 | E177: 0.02566881196 | F177: 0.004865661293 | G177: 0.00032653447 | H177: 3.2674e-05 | I177: 0.003753348079 | J177: 8.805446237e-05 | K177: 0.03473508427 | M177: 0.02944876663 | N177: 0.006790022469 | O177: 0.0002171738482 | P177: 2.394823389e-05 | Q177: 0.006564970529 | R177: 5.004753473e-05 | S177: 7.395618216e-05 | T177: 0.04309492924
A178: 2004 | B178: 1 | C178: 8 | D178: 8 | E178: 0.02906465393 | F178: 0.00537965224 | G178: 0 | H178: 0 | I178: 0.003688226157 | J178: 8.805446237e-05 | K178: 0.03822058679 | M178: 0.0333446757 | N178: 0.007507296006 | O178: 0 | P178: 0 | Q178: 0.006451065958 | R178: 5.004753473e-05 | S178: 8.176864707e-05 | T178: 0.0473530852
A179: 2004 | B179: 1 | C179: 8 | D179: 9 | E179: 0.02785542593 | F179: 0.005818713151 | G179: 0 | H179: 0 | I179: 0.003684774389 | J179: 8.805446237e-05 | K179: 0.03744696793 | M179: 0.03195737842 | N179: 0.008120004796 | O179: 0 | P179: 0 | Q179: 0.006445028482 | R179: 5.004753473e-05 | S179: 8.844220421e-05 | T179: 0.04657245923
A180: 2004 | B180: 1 | C180: 8 | D180: 10 | E180: 0.02633870265 | F180: 0.006034105323 | G180: 0 | H180: 0 | I180: 0.003672954464 | J180: 8.805446237e-05 | K180: 0.0361338169 | M180: 0.03021730451 | N180: 0.008420584224 | O180: 0 | P180: 0 | Q180: 0.006424354283 | R180: 5.004753473e-05 | S180: 9.171608246e-05 | T180: 0.04511229055
A181: 2004 | B181: 1 | C181: 8 | D181: 11 | E181: 0.02518658202 | F181: 0.006242237784 | G181: 0 | H181: 0 | I181: 0.00364949129 | J181: 8.805446237e-05 | K181: 0.03516636556 | M181: 0.02889552415 | N181: 0.008711032737 | O181: 0 | P181: 0 | Q181: 0.006383314912 | R181: 5.004753473e-05 | S181: 9.487961591e-05 | T181: 0.04403991934
A182: 2004 | B182: 1 | C182: 8 | D182: 12 | E182: 0.02470352227 | F182: 0.006088717329 | G182: 0 | H182: 0 | I182: 0.003454551894 | J182: 8.805446237e-05 | K182: 0.03433484596 | M182: 0.02834132967 | N182: 0.008496795191 | O182: 0 | P182: 0 | Q182: 0.006042346965 | R182: 5.004753473e-05 | S182: 9.254616398e-05 | T182: 0.04293051936
A183: 2004 | B183: 1 | C183: 8 | D183: 13 | E183: 0.0244487772 | F183: 0.005896186377 | G183: 0 | H183: 0 | I183: 0.003230567183 | J183: 8.805446237e-05 | K183: 0.03366358522 | M183: 0.02804907119 | N183: 0.008228118557 | O183: 0 | P183: 0 | Q183: 0.00565057594 | R183: 5.004753473e-05 | S183: 8.961976747e-05 | T183: 0.04197781322
A184: 2004 | B184: 1 | C184: 8 | D184: 14 | E184: 0.02335690883 | F184: 0.006017405931 | G184: 0 | H184: 0 | I184: 0.003388158783 | J184: 8.805446237e-05 | K184: 0.032850528 | M184: 0.02679641575 | N184: 0.00839728025 | O184: 0 | P184: 0 | Q184: 0.005926218961 | R184: 5.004753473e-05 | S184: 9.146225813e-05 | T184: 0.0411699625
A185: 2004 | B185: 1 | C185: 8 | D185: 15 | E185: 0.02346948386 | F185: 0.006055588454 | G185: 0 | H185: 0 | I185: 0.003682104154 | J185: 8.805446237e-05 | K185: 0.03329523093 | M185: 0.02692556843 | N185: 0.008450563899 | O185: 0 | P185: 0 | Q185: 0.006440357981 | R185: 5.004753473e-05 | S185: 9.204261781e-05 | T185: 0.04186653785
A186: 2004 | B186: 1 | C186: 8 | D186: 16 | E186: 0.02455426585 | F186: 0.005786324514 | G186: 0 | H186: 0 | I186: 0.003478274497 | J186: 8.805446237e-05 | K186: 0.03390691932 | M186: 0.02817009395 | N186: 0.008074806505 | O186: 0 | P186: 0 | Q186: 0.006083840104 | R186: 5.004753473e-05 | S186: 8.794990937e-05 | T186: 0.0423787881
A187: 2004 | B187: 1 | C187: 8 | D187: 17 | E187: 0.02757927434 | F187: 0.005605477001 | G187: 0 | H187: 0 | I187: 0.003423187112 | J187: 8.805446237e-05 | K187: 0.03669599292 | M187: 0.03164056112 | N187: 0.007822434093 | O187: 0 | P187: 0 | Q187: 0.005987486914 | R187: 5.004753473e-05 | S187: 8.520109666e-05 | T187: 0.04550052967
A188: 2004 | B188: 1 | C188: 8 | D188: 18 | E188: 0.03187858762 | F188: 0.005504743777 | G188: 0.00032653447 | H188: 3.2674e-05 | I188: 0.003296542651 | J188: 8.805446237e-05 | K188: 0.04112713698 | M188: 0.03657298548 | N188: 0.007681861042 | O188: 0.0002171738482 | P188: 2.394823389e-05 | Q188: 0.005765973443 | R188: 5.004753473e-05 | S188: 8.366999036e-05 | T188: 0.05031198959
A189: 2004 | B189: 1 | C189: 8 | D189: 19 | E189: 0.03419606661 | F189: 0.005658500908 | G189: 0.00032653447 | H189: 3.2674e-05 | I189: 0.003444054273 | J189: 8.805446237e-05 | K189: 0.04374588472 | M189: 0.0392317333 | N189: 0.00789642887 | O189: 0.0002171738482 | P189: 2.394823389e-05 | Q189: 0.006023985606 | R189: 5.004753473e-05 | S189: 8.600703967e-05 | T189: 0.0534433174
A190: 2004 | B190: 1 | C190: 8 | D190: 20 | E190: 0.03380501969 | F190: 0.005515578033 | G190: 0.00032653447 | H190: 3.2674e-05 | I190: 0.003445208435 | J190: 8.805446237e-05 | K190: 0.04321306909 | M190: 0.03878310134 | N190: 0.007696980229 | O190: 0.0002171738482 | P190: 2.394823389e-05 | Q190: 0.006026004347 | R190: 5.004753473e-05 | S190: 8.383466689e-05 | T190: 0.05279725553
A191: 2004 | B191: 1 | C191: 8 | D191: 21 | E191: 0.03321308358 | F191: 0.005371079261 | G191: 0.00032653447 | H191: 3.2674e-05 | I191: 0.003386203919 | J191: 8.805446237e-05 | K191: 0.04241762969 | M191: 0.03810399752 | N191: 0.007495332427 | O191: 0.0002171738482 | P191: 2.394823389e-05 | Q191: 0.005922799714 | R191: 5.004753473e-05 | S191: 8.163834108e-05 | T191: 0.05181329927
A192: 2004 | B192: 1 | C192: 8 | D192: 22 | E192: 0.03108979804 | F192: 0.004956216601 | G192: 0.00032653447 | H192: 3.2674e-05 | I192: 0.002954874693 | J192: 8.805446237e-05 | K192: 0.03944815226 | M192: 0.03566803981 | N192: 0.006916392254 | O192: 0.0002171738482 | P192: 2.394823389e-05 | Q192: 0.005168362984 | R192: 5.004753473e-05 | S192: 7.533258804e-05 | T192: 0.04804396466
A193: 2004 | B193: 1 | C193: 8 | D193: 23 | E193: 0.02782197435 | F193: 0.004595116013 | G193: 0.00032653447 | H193: 3.2674e-05 | I193: 0.00281049072 | J193: 8.805446237e-05 | K193: 0.03567484402 | M193: 0.03191900081 | N193: 0.006412476968 | O193: 0.0002171738482 | P193: 2.394823389e-05 | Q193: 0.004915821384 | R193: 5.004753473e-05 | S193: 6.984399785e-05 | T193: 0.04353846878
A194: 2004 | B194: 1 | C194: 8 | D194: 24 | E194: 0.02439778578 | F194: 0.004232690083 | G194: 0.00032653447 | H194: 3.2674e-05 | I194: 0.002923645014 | J194: 8.805446237e-05 | K194: 0.03200138381 | M194: 0.02799057084 | N194: 0.005906712169 | O194: 0.0002171738482 | P194: 2.394823389e-05 | Q194: 0.005113739239 | R194: 5.004753473e-05 | S194: 6.433526297e-05 | T194: 0.03930219186
A195: 2004 | B195: 1 | C195: 9 | D195: 1 | E195: 0.02098127813 | F195: 0.004218078814 | G195: 0.00032653447 | H195: 3.2674e-05 | I195: 0.003174366063 | J195: 8.805446237e-05 | K195: =SUM(E195:J195) -> 0.02882098594 | M195: =E195*W$5 -> 0.02407095287 | N195: 0.005886322167 | O195: =G195*Y$5 -> 0.0002171738482 | P195: =H195*Z$5 -> 2.394823389e-05 | Q195: =I195*AA$5 -> 0.005552274719 | R195: =J195*AB$5 -> 5.004753473e-05 | S195: 6.41131773e-05 | T195: =SUM(M195:R195) -> 0.03580071938
A196: 2004 | B196: 1 | C196: 9 | D196: 2 | E196: 0.02001201506 | F196: 0.004317462961 | G196: 0.00032653447 | H196: 3.2674e-05 | I196: 0.003460148662 | J196: 8.805446237e-05 | K196: 0.02823688961 | M196: 0.02295895743 | N196: =(F196*X$5)-S196 -> 0.006025012583 | O196: 0.0002171738482 | P196: 2.394823389e-05 | Q196: 0.006052136256 | R196: 5.004753473e-05 | S196: =(F196*$AC$7)*$AC$5 -> 6.562377814e-05 | T196: 0.03532727589
A197: 2004 | B197: 1 | C197: 9 | D197: 3 | E197: 0.01993433368 | F197: 0.004244441789 | G197: 0.00032653447 | H197: 3.2674e-05 | I197: 0.003410587671 | J197: 8.805446237e-05 | K197: 0.02803662607 | M197: 0.0228698368 | N197: 0.005923111656 | O197: 0.0002171738482 | P197: 2.394823389e-05 | Q197: 0.005965449266 | R197: 5.004753473e-05 | S197: 6.451388439e-05 | T197: 0.03504956734
A198: 2004 | B198: 1 | C198: 9 | D198: 4 | E198: 0.02045331637 | F198: 0.004232648383 | G198: 0.00032653447 | H198: 3.2674e-05 | I198: 0.003402385282 | J198: 8.805446237e-05 | K198: 0.02853561297 | M198: 0.02346524418 | N198: 0.005906653977 | O198: 0.0002171738482 | P198: 2.394823389e-05 | Q198: 0.005951102491 | R198: 5.004753473e-05 | S198: 6.433462915e-05 | T198: 0.03561417027
A199: 2004 | B199: 1 | C199: 9 | D199: 5 | E199: 0.02106424698 | F199: 0.004330680392 | G199: 0.00032653447 | H199: 3.2674e-05 | I199: 0.003629646002 | J199: 8.805446237e-05 | K199: 0.0294718363 | M199: 0.02416613961 | N199: 0.006043457486 | O199: 0.0002171738482 | P199: 2.394823389e-05 | Q199: 0.006348603574 | R199: 5.004753473e-05 | S199: 6.582467801e-05 | T199: 0.03684937029
A200: 2004 | B200: 1 | C200: 9 | D200: 6 | E200: 0.022270554 | F200: 0.004407072219 | G200: 0.00032653447 | H200: 3.2674e-05 | I200: 0.003510134575 | J200: 8.805446237e-05 | K200: 0.03063502372 | M200: 0.02555008577 | N200: 0.006150062158 | O200: 0.0002171738482 | P200: 2.394823389e-05 | Q200: 0.006139566476 | R200: 5.004753473e-05 | S200: 6.698580444e-05 | T200: 0.03813088402
... 4297 more rows

Sheet 2006 Input to CA model (hidden)
A2: Feed into OEB Cost Allocation Model (version 50) sheet "I6 Customer Data", row 27
D3: 1 | E3: 2 | F3: 3 | G3: 4 | H3: 5 | I3: 6 | J3: 7 | K3: 8 | L3: 9 | M3: 10 | N3: 11 | O3: 12 | P3: 13 | Q3: 14 | R3: 15 | S3: 16 | T3: 17 | U3: 18 | V3: 19 | W3: 20
B4: ID | C4: Total | D4: Residential | E4: GS>50kW | F4: Street Lighting | G4: Sentinel Lighting | H4: GS<50 kW | I4: Intermediate Use
A6: kWh - 30 year weather normalized amount | C6: 117394248.6 | D6: 27252917.78 | E6: 23215769.79 | F6: 1125333.42 | G6: 66176.72374 | H6: 13029066.17 | I6: 52704984.67
A9: Feed into OEB Cost Allocation Model sheet (version 50) "I8 Demand Data", row 40, 45, 50, 55, 61 and 67
D10: 1 | E10: 2 | F10: 3 | G10: 4 | H10: 5 | I10: 6 | J10: 7 | K10: 8 | L10: 9 | M10: 10 | N10: 11 | O10: 12 | P10: 13 | Q10: 14 | R10: 15 | S10: 16 | T10: 17 | U10: 18 | V10: 19 | W10: 20
A11: Customer Classes | C11: Total | D11: Residential | E11: GS>50kW | F11: Street Lighting | G11: Sentinel Lighting | H11: GS<50 kW | I11: Intermediate Use
A13: CO-INCIDENT PEAK (kW)
A15: 1 CP
A16: Total Sytem CP | B16: DCP1 | C16: 20665.51203 | D16: 5602.125684 | E16: 4189.787746 | F16: 88.25164319 | G16: 5.204063134 | H16: 1996.133384 | I16: 8784.009504
A18: 4 CP
A19: Total Sytem CP | B19: DCP4 | C19: 77906.48331 | D19: 20277.76432 | E19: 14949.5403 | F19: 413.6268728 | G19: 24.36977066 | H19: 7884.002261 | I19: 34357.17978
A21: 12 CP
A22: Total Sytem CP | B22: DCP12 | C22: 207861.3099 | D22: 45434.76569 | E22: 39616.17027 | F22: 678.8108559 | G22: 39.91380788 | H22: 19540.40224 | I22: 102551.2471
A24: NON CO_INCIDENT PEAK (kW)
A26: 1 NCP
A27: Classification NCP from Load Data Provider | B27: DNCP1 | C27: 23822.05999 | D27: 7713.615672 | E27: 4242.611032 | F27: 269.1950995 | G27: 15.87406409 | H27: 2460.701238 | I27: 9120.062883
A29: 4 NCP
A30: Classification NCP from Load Data Provider | B30: DNCP4 | C30: 88383.42134 | D30: 25897.20786 | E30: 16100.92404 | F30: 1064.659741 | G30: 62.74149277 | H30: 9088.162121 | I30: 36169.72608
A32: 12 NCP
A33: Classification NCP from Load Data Provider | B33: DNCP12 | C33: 230746.2608 | D33: 57815.0542 | E33: 42285.09205 | F33: 3151.17763 | G33: 185.345773 | H33: 22440.96793 | I33: 104868.6232

Sheet Revised Inputs to CA model
A2: Feed into OEB Cost Allocation Model (version 50) sheet "I6 Customer Data", row 27
B4: ID | C4: Total | D4: ='Hourly load shapes by class'!E2 -> Residential | E4: ='Hourly load shapes by class'!F2 -> GS>50kW | F4: ='Hourly load shapes by class'!G2 -> Street Lighting | G4: ='Hourly load shapes by class'!H2 -> Sentinel Lighting | H4: ='Hourly load shapes by class'!I2 -> GS<50kW | I4: ='Hourly load shapes by class'!J2 -> USL
A6: kWh - 30 year weather normalized amount | C6: =SUM(D6:I6) -> 294171592.8 | D6: ='Hourly load shapes by class'!W4 -> 190211160.5 | E6: ='Hourly load shapes by class'!X4 -> 56653142.46 | F6: ='Hourly load shapes by class'!Y4 -> 869951.516 | G6: ='Hourly load shapes by class'!Z4 -> 95254.1003 | H6: ='Hourly load shapes by class'!AA4 -> 45901003.2 | I6: ='Hourly load shapes by class'!AB4 -> 441080.9862
A9: Feed into OEB Cost Allocation Model sheet (version 50) "I8 Demand Data", row 40, 45, 50, 55, 61 and 67 | K9: 2024 Demand Data
A11: Customer Classes | C11: Total | D11: ='Hourly load shapes by class'!E2 -> Residential | E11: ='Hourly load shapes by class'!F2 -> GS>50kW | F11: ='Hourly load shapes by class'!G2 -> Street Lighting | G11: ='Hourly load shapes by class'!H2 -> Sentinel Lighting | H11: ='Hourly load shapes by class'!I2 -> GS<50kW | I11: ='Hourly load shapes by class'!J2 -> USL | L11: =D11 -> Residential | M11: =E11 -> GS>50kW | N11: =F11 -> Street Lighting | O11: =G11 -> Sentinel Lighting | P11: GS<50kW | Q11: USL | R11: ED
A13: CO-INCIDENT PEAK (kW)
A15: 1 CP
A16: Total Sytem CP | B16: DCP1 | C16: =SUM(D16:I16) -> 49473.32853 | D16: ='Hourly load shapes by class'!E8802*1000000 -> 40614.29052 | E16: ='Hourly load shapes by class'!F8802*1000000 -> 5052.81055 | F16: ='Hourly load shapes by class'!G8802*1000000 -> 326.53447 | G16: ='Hourly load shapes by class'!H8802*1000000 -> 32.674 | H16: ='Hourly load shapes by class'!I8802*1000000 -> 3358.96453 | I16: ='Hourly load shapes by class'!J8802*1000000 -> 88.05446237 | L16: ='Hourly load shapes by class'!M8815*1000000 -> 46595.09622 | M16: ='Hourly load shapes by class'!N8815*1000000 -> 7051.188955 | N16: ='Hourly load shapes by class'!O8815*1000000 -> 217.1738482 | O16: ='Hourly load shapes by class'!P8815*1000000 -> 23.94823389 | P16: ='Hourly load shapes by class'!Q8815*1000000 -> 5875.155377 | Q16: ='Hourly load shapes by class'!R8815*1000000 -> 50.04753473 | R16: ='Hourly load shapes by class'!S8815*1000000 -> 76.80077895
A18: 4 CP
A19: Total Sytem CP | B19: DCP4 | C19: =SUM(D19:I19) -> 190329.8153 | D19: =SUM('Hourly load shapes by class'!E8815:E8818)*1000000 -> 152081.421 | E19: =SUM('Hourly load shapes by class'!F8815:F8818)*1000000 -> 21676.40471 | F19: =SUM('Hourly load shapes by class'!G8815:G8818)*1000000 -> 1312.07717 | G19: =SUM('Hourly load shapes by class'!H8815:H8818)*1000000 -> 130.6961635 | H19: =SUM('Hourly load shapes by class'!I8815:I8818)*1000000 -> 14772.02534 | I19: =SUM('Hourly load shapes by class'!J8815:J8818)*1000000 -> 357.190875 | L19: =SUM('Hourly load shapes by class'!M8815:M8818)*1000000 -> 174046.546 | M19: =SUM('Hourly load shapes by class'!N8815:N8818)*1000000 -> 30613.83048 | N19: =SUM('Hourly load shapes by class'!O8815:O8818)*1000000 -> 651.9421456 | O19: =SUM('Hourly load shapes by class'!P8815:P8818)*1000000 -> 71.84482151 | P19: =SUM('Hourly load shapes by class'!Q8815:Q8818)*1000000 -> 26278.52433 | Q19: =SUM('Hourly load shapes by class'!R8815:R8818)*1000000 -> 203.0166586 | R19: =SUM('Hourly load shapes by class'!S8815:S8818)*1000000 -> 333.4424936
A21: 12 CP
A22: Total Sytem CP | B22: DCP12 | C22: =SUM(D22:I22) -> 480144.7382 | D22: =SUM('Hourly load shapes by class'!E8802:E8813)*1000000 -> 366099.4155 | E22: =SUM('Hourly load shapes by class'!F8802:F8813)*1000000 -> 66890.51153 | F22: =SUM('Hourly load shapes by class'!G8802:G8813)*1000000 -> 1967.32789 | G22: =SUM('Hourly load shapes by class'!H8802:H8813)*1000000 -> 196.0441635 | H22: =SUM('Hourly load shapes by class'!I8802:I8813)*1000000 -> 43930.95104 | I22: =SUM('Hourly load shapes by class'!J8802:J8813)*1000000 -> 1060.487997 | L22: =SUM('Hourly load shapes by class'!M8802:M8813)*1000000 -> 416807.4979 | M22: =SUM('Hourly load shapes by class'!N8802:N8813)*1000000 -> 95477.07026 | N22: =SUM('Hourly load shapes by class'!O8802:O8813)*1000000 -> 1087.740916 | O22: =SUM('Hourly load shapes by class'!P8802:P8813)*1000000 -> 119.7412893 | P22: =SUM('Hourly load shapes by class'!Q8802:Q8813)*1000000 -> 78614.20328 | Q22: =SUM('Hourly load shapes by class'!R8802:R8813)*1000000 -> 602.7498031 | R22: =SUM('Hourly load shapes by class'!S8802:S8813)*1000000 -> 1039.925808
A24: NON CO_INCIDENT PEAK (kW)
A26: 1 NCP
A27: Classification NCP from Load Data Provider | B27: DNCP1 | C27: =SUM(D27:I27) -> 52171.1728 | D27: ='Hourly load shapes by class'!E8788*1000000 -> 40614.29052 | E27: ='Hourly load shapes by class'!F8788*1000000 -> 6456.023266 | F27: ='Hourly load shapes by class'!G8788*1000000 -> 326.53447 | G27: ='Hourly load shapes by class'!H8788*1000000 -> 32.674 | H27: ='Hourly load shapes by class'!I8788*1000000 -> 4653.596081 | I27: ='Hourly load shapes by class'!J8788*1000000 -> 88.05446237 | L27: =MAX('Hourly load shapes by class'!M8788:M8799)*1000000 -> 46595.09622 | M27: =MAX('Hourly load shapes by class'!N8788:N8799)*1000000 -> 10380.37329 | N27: =MAX('Hourly load shapes by class'!O8788:O8799)*1000000 -> 220.703392 | O27: =MAX('Hourly load shapes by class'!P8788:P8799)*1000000 -> 23.94835373 | P27: =MAX('Hourly load shapes by class'!Q8788:Q8799)*1000000 -> 8653.255978 | Q27: =MAX('Hourly load shapes by class'!R8788:R8799)*1000000 -> 52.13779263 | R27: =MAX('Hourly load shapes by class'!S8788:S8799)*1000000 -> 113.0618907
A29: 4 NCP
A30: Classification NCP from Load Data Provider | B30: DNCP4 | C30: =SUM(D30:I30) -> 201923.7632 | D30: =(LARGE('Hourly load shapes by class'!E8788:E8799,1)+LARGE('Hourly load shapes by class'!E8788:E8799,2)+LARGE('Hourly load shapes by class'!E8788:E8799,3)+LARGE('Hourly load shapes by class'!E8788:E8799,4))*1000000 -> 153920.7162 | E30: =(LARGE('Hourly load shapes by class'!F8788:F8799,1)+LARGE('Hourly load shapes by class'!F8788:F8799,2)+LARGE('Hourly load shapes by class'!F8788:F8799,3)+LARGE('Hourly load shapes by class'!F8788:F8799,4))*1000000 -> 28008.95145 | F30: =(LARGE('Hourly load shapes by class'!G8788:G8799,1)+LARGE('Hourly load shapes by class'!G8788:G8799,2)+LARGE('Hourly load shapes by class'!G8788:G8799,3)+LARGE('Hourly load shapes by class'!G8788:G8799,4))*1000000 -> 1327.36544 | G30: =(LARGE('Hourly load shapes by class'!H8788:H8799,1)+LARGE('Hourly load shapes by class'!H8788:H8799,2)+LARGE('Hourly load shapes by class'!H8788:H8799,3)+LARGE('Hourly load shapes by class'!H8788:H8799,4))*1000000 -> 130.6961635 | H30: =(LARGE('Hourly load shapes by class'!I8788:I8799,1)+LARGE('Hourly load shapes by class'!I8788:I8799,2)+LARGE('Hourly load shapes by class'!I8788:I8799,3)+LARGE('Hourly load shapes by class'!I8788:I8799,4))*1000000 -> 18174.08273 | I30: =(LARGE('Hourly load shapes by class'!J8788:J8799,1)+LARGE('Hourly load shapes by class'!J8788:J8799,2)+LARGE('Hourly load shapes by class'!J8788:J8799,3)+LARGE('Hourly load shapes by class'!J8788:J8799,4))*1000000 -> 361.9512155 | L30: =(LARGE('Hourly load shapes by class'!M8788:M8799,1)+LARGE('Hourly load shapes by class'!M8788:M8799,2)+LARGE('Hourly load shapes by class'!M8788:M8799,3)+LARGE('Hourly load shapes by class'!M8788:M8799,4))*1000000 -> 176586.8735 | M30: =(LARGE('Hourly load shapes by class'!N8788:N8799,1)+LARGE('Hourly load shapes by class'!N8788:N8799,2)+LARGE('Hourly load shapes by class'!N8788:N8799,3)+LARGE('Hourly load shapes by class'!N8788:N8799,4))*1000000 -> 39086.44647 | N30: =(LARGE('Hourly load shapes by class'!O8788:O8799,1)+LARGE('Hourly load shapes by class'!O8788:O8799,2)+LARGE('Hourly load shapes by class'!O8788:O8799,3)+LARGE('Hourly load shapes by class'!O8788:O8799,4))*1000000 -> 882.8135681 | O30: =(LARGE('Hourly load shapes by class'!P8788:P8799,1)+LARGE('Hourly load shapes by class'!P8788:P8799,2)+LARGE('Hourly load shapes by class'!P8788:P8799,3)+LARGE('Hourly load shapes by class'!P8788:P8799,4))*1000000 -> 95.7930554 | P30: =(LARGE('Hourly load shapes by class'!Q8788:Q8799,1)+LARGE('Hourly load shapes by class'!Q8788:Q8799,2)+LARGE('Hourly load shapes by class'!Q8788:Q8799,3)+LARGE('Hourly load shapes by class'!Q8788:Q8799,4))*1000000 -> 31788.2368 | Q30: =(LARGE('Hourly load shapes by class'!R8788:R8799,1)+LARGE('Hourly load shapes by class'!R8788:R8799,2)+LARGE('Hourly load shapes by class'!R8788:R8799,3)+LARGE('Hourly load shapes by class'!R8788:R8799,4))*1000000 -> 205.7222944 | R30: =(LARGE('Hourly load shapes by class'!S8788:S8799,1)+LARGE('Hourly load shapes by class'!S8788:S8799,2)+LARGE('Hourly load shapes by class'!S8788:S8799,3)+LARGE('Hourly load shapes by class'!S8788:S8799,4))*1000000 -> 425.7253004
A32: 12 NCP
A33: Classification NCP from Load Data Provider | B33: DNCP12 | C33: =SUM(D33:I33) -> 504539.8449 | D33: =SUM('Hourly load shapes by class'!E8788:E8799)*1000000 -> 370216.4815 | E33: =SUM('Hourly load shapes by class'!F8788:F8799)*1000000 -> 79538.44316 | F33: =SUM('Hourly load shapes by class'!G8788:G8799)*1000000 -> 3948.05212 | G33: =SUM('Hourly load shapes by class'!H8788:H8799)*1000000 -> 392.0881635 | H33: =SUM('Hourly load shapes by class'!I8788:I8799)*1000000 -> 49384.29196 | I33: =SUM('Hourly load shapes by class'!J8788:J8799)*1000000 -> 1060.487997 | L33: =SUM('Hourly load shapes by class'!M8788:M8799)*1000000 -> 424734.0617 | M33: =SUM('Hourly load shapes by class'!N8788:N8799)*1000000 -> 110995.7689 | N33: =SUM('Hourly load shapes by class'!O8788:O8799)*1000000 -> 2625.798348 | O33: =SUM('Hourly load shapes by class'!P8788:P8799)*1000000 -> 287.3789265 | P33: =SUM('Hourly load shapes by class'!Q8788:Q8799)*1000000 -> 86377.92565 | Q33: =SUM('Hourly load shapes by class'!R8788:R8799)*1000000 -> 602.7498031 | R33: =SUM('Hourly load shapes by class'!S8788:S8799)*1000000 -> 1208.953776
